Workbook

Sheet Aktien
L2: =NOW() -> 2025-04-10T22:27:46.750 | M2: =SUM(M4:M16)-SUM(N4:N16) -> 48260.08256 | O2: =SUM(O4:O16)-SUM(P4:P16) -> 18883.32156 | Q2: =Kursentwicklung!M4 -> 0.6428
C3: Aktie | D3: WKN | E3: Anzahl | G3: Kaufkurs | H3: Kosten | J3: Dividende | K3: Kosten (abs.) | L3: Istkurs | M3: Wert (aktuell) | N3: Verkaufserlös | O3: Gewinn/Verlust | Q3: min.Kurs | S3: Gewinn pro Jahr | T3: Gewinn absolut
C4: Telefonaktiebolaget LM Ericsson Class B | D4: 850001 | E4: =IF((SUMIFS(H$20:H$19833,D$20:D$19833,D4,E$20:E$19833,"Splitt")>0),SUMIFS(H$20:H$19833,D$20:D$19833,D4,E$20:E$19833,"Splitt"),SUMIFS(H$20:H$19833,D$20:D$19833,D4,E$20:E$19833,"Kauf"))-F4 -> 500 | F4: =SUMIFS(H$20:H$19833,D$20:D$19833,D4,E$20:E$19833,"Verkauf") -> 0 | G4: =IFERROR(SUMIF(D20:D19833,D4,J20:J19833)/COUNTIFS(D20:D19833,D4,E20:E19833,"Kauf"),"") -> 1 | H4: =SUMIFS(G$20:G$19833,D$20:D$19833,D4,E$20:E$19833,"Kauf") -> 500 | J4: =SUMIFS(G$20:G$19833,D$20:D$19833,D4,E$20:E$19833,J$3) -> 25.69 | K4: =IF(H4-J4 < 0,0,H4-J4) -> 474.31 | L4: =IFERROR(VLOOKUP(C4,Kurse!A:F,3,0)*VLOOKUP(R4,Währung!C:D,2,0)," ") -> 6.37 | M4: =IF(N4>0,N4,IF(E4<1," ",E4*L4)) -> 3185 | N4: =SUMIFS(G$20:G$19833,D$20:D$19833,D4,E$20:E$19833,"Verkauf") -> 0 | O4: =IF(E4<1," ",(IF(N4>0,N4-H4+J4,M4-H4+J4))) -> 2710.69 | P4: =IF(N4>0,O4,0) -> 0 | Q4: =IF(N4>0," ",IF(E4<1," ",IF((H4-J4)/E4<0," ",(H4-J4)/E4))) -> 0.94862 | R4: =VLOOKUP(C4,Kurse!A:F,4,0) -> EUR | S4: =IFERROR(O4/H4/((TODAY()-_xlfn.MINIFS(B$20:B$386,C$20:C$386,C4))/365),"") -> 0.258093609 | T4: =IF(ISERROR((M4+J4)/H4-100%)," ",(M4+J4)/H4-100%) -> 5.42138
C5: Deutsche Telekom AG | D5: 555750 | E5: =IF((SUMIFS(H$20:H$19833,D$20:D$19833,D5,E$20:E$19833,"Splitt")>0),SUMIFS(H$20:H$19833,D$20:D$19833,D5,E$20:E$19833,"Splitt"),SUMIFS(H$20:H$19833,D$20:D$19833,D5,E$20:E$19833,"Kauf"))-F5 -> 1 | F5: =SUMIFS(H$20:H$19833,D$20:D$19833,D5,E$20:E$19833,"Verkauf") -> 0 | G5: =IFERROR(SUMIF(D20:D19834,D5,J20:J19834)/COUNTIFS(D20:D19834,D5,E20:E19834,"Kauf"),"") -> 0 | H5: =SUMIFS(G$20:G$19833,D$20:D$19833,D5,E$20:E$19833,"Kauf") -> 0 | J5: =SUMIFS(G$20:G$19833,D$20:D$19833,D5,E$20:E$19833,J$3) -> 0.77 | K5: =IF(H5-J5 < 0,0,H5-J5) -> 0 | L5: =IFERROR(VLOOKUP(C5,Kurse!A:F,3,0)*VLOOKUP(R5,Währung!C:D,2,0)," ") -> 30.94929641 | M5: 30.94929641 | N5: =SUMIFS(G$20:G$19833,D$20:D$19833,D5,E$20:E$19833,"Verkauf") -> 0 | O5: 31.71929641 | P5: =IF(N5>0,O5,0) -> 0 | Q5: =IF(N5>0," ",IF(E5<1," ",IF((H5-J5)/E5<0," ",(H5-J5)/E5))) ->  | R5: =VLOOKUP(C5,Kurse!A:F,4,0) -> USD | S5: =IFERROR(O5/H5/((TODAY()-_xlfn.MINIFS(B$20:B$386,C$20:C$386,C5))/365),"") ->  | T5: =IF(ISERROR((M5+J5)/H5-100%)," ",(M5+J5)/H5-100%) -> 
C6: Kraft Heinz Co | D6: A14TU4 | E6: =IF((SUMIFS(H$20:H$19833,D$20:D$19833,D6,E$20:E$19833,"Splitt")>0),SUMIFS(H$20:H$19833,D$20:D$19833,D6,E$20:E$19833,"Splitt"),SUMIFS(H$20:H$19833,D$20:D$19833,D6,E$20:E$19833,"Kauf"))-F6 -> 350 | F6: =SUMIFS(H$20:H$19833,D$20:D$19833,D6,E$20:E$19833,"Verkauf") -> 0 | G6: =IFERROR(SUMIF(D20:D19835,D6,J20:J19835)/COUNTIFS(D20:D19835,D6,E20:E19835,"Kauf"),"") -> 15 | H6: =SUMIFS(G$20:G$19833,D$20:D$19833,D6,E$20:E$19833,"Kauf") -> 5250 | J6: =SUMIFS(G$20:G$19833,D$20:D$19833,D6,E$20:E$19833,J$3) -> 638.71 | K6: 4611.29 | L6: =IFERROR(VLOOKUP(C6,Kurse!A:F,3,0)*VLOOKUP(R6,Währung!C:D,2,0)," ") -> 25.76725486 | M6: 9018.539201 | N6: =SUMIFS(G$20:G$19833,D$20:D$19833,D6,E$20:E$19833,"Verkauf") -> 0 | O6: 4407.249201 | P6: 0 | Q6: 13.17511429 | R6: =VLOOKUP(C6,Kurse!A:F,4,0) -> USD | S6: =IFERROR(O6/H6/((TODAY()-_xlfn.MINIFS(B$20:B$386,C$20:C$386,C6))/365),"") -> 0.1560920805 | T6: 0.8394760383
C7: BRITISH AMERICAN TOBACCO PLC ADS Common Stock | D7: 916018 | E7: =IF((SUMIFS(H$20:H$19833,D$20:D$19833,D7,E$20:E$19833,"Splitt")>0),SUMIFS(H$20:H$19833,D$20:D$19833,D7,E$20:E$19833,"Splitt"),SUMIFS(H$20:H$19833,D$20:D$19833,D7,E$20:E$19833,"Kauf"))-F7 -> 450 | F7: =SUMIFS(H$20:H$19833,D$20:D$19833,D7,E$20:E$19833,"Verkauf") -> 0 | G7: =IFERROR(SUMIF(D20:D19836,D7,J20:J19836)/COUNTIFS(D20:D19836,D7,E20:E19836,"Kauf"),"") -> 19 | H7: =SUMIFS(G$20:G$19833,D$20:D$19833,D7,E$20:E$19833,"Kauf") -> 8700 | J7: =SUMIFS(G$20:G$19833,D$20:D$19833,D7,E$20:E$19833,J$3) -> 1551.39 | K7: 7148.61 | L7: =IFERROR(VLOOKUP(C7,Kurse!A:F,3,0)*VLOOKUP(R7,Währung!C:D,2,0)," ") -> 37.30176458 | M7: 16785.79406 | N7: =SUMIFS(G$20:G$19833,D$20:D$19833,D7,E$20:E$19833,"Verkauf") -> 0 | O7: 9637.18406 | P7: 0 | Q7: 15.8858 | R7: =VLOOKUP(C7,Kurse!A:F,4,0) -> USD | S7: =IFERROR(O7/H7/((TODAY()-_xlfn.MINIFS(B$20:B$386,C$20:C$386,C7))/365),"") -> 0.2059697614 | T7: 1.107722306
C8: Prosiebensat 1 Media SE | D8: PSM777 | E8: =IF((SUMIFS(H$20:H$19833,D$20:D$19833,D8,E$20:E$19833,"Splitt")>0),SUMIFS(H$20:H$19833,D$20:D$19833,D8,E$20:E$19833,"Splitt"),SUMIFS(H$20:H$19833,D$20:D$19833,D8,E$20:E$19833,"Kauf"))-F8 -> 750 | F8: =SUMIFS(H$20:H$19833,D$20:D$19833,D8,E$20:E$19833,"Verkauf") -> 0 | G8: =IFERROR(SUMIF(D20:D19837,D8,J20:J19837)/COUNTIFS(D20:D19837,D8,E20:E19837,"Kauf"),"") -> 5 | H8: =SUMIFS(G$20:G$19833,D$20:D$19833,D8,E$20:E$19833,"Kauf") -> 3750 | J8: =SUMIFS(G$20:G$19833,D$20:D$19833,D8,E$20:E$19833,J$3) -> 37.5 | K8: 3712.5 | L8: =IFERROR(VLOOKUP(C8,Kurse!A:F,3,0)*VLOOKUP(R8,Währung!C:D,2,0)," ") -> 5.68 | M8: 4260 | N8: =SUMIFS(G$20:G$19833,D$20:D$19833,D8,E$20:E$19833,"Verkauf") -> 0 | O8: 547.5 | P8: 0 | Q8: 4.95 | R8: =VLOOKUP(C8,Kurse!A:F,4,0) -> EUR | S8: =IFERROR(O8/H8/((TODAY()-_xlfn.MINIFS(B$20:B$386,C$20:C$386,C8))/365),"") -> 0.02717491076 | T8: 0.146
C9: Dow Inc | D9: A2PFRC | E9: =IF((SUMIFS(H$20:H$19833,D$20:D$19833,D9,E$20:E$19833,"Splitt")>0),SUMIFS(H$20:H$19833,D$20:D$19833,D9,E$20:E$19833,"Splitt"),SUMIFS(H$20:H$19833,D$20:D$19833,D9,E$20:E$19833,"Kauf"))-F9 -> 619 | F9: =SUMIFS(H$20:H$19833,D$20:D$19833,D9,E$20:E$19833,"Verkauf") -> 0 | G9: =IFERROR(SUMIF(D20:D19838,D9,J20:J19838)/COUNTIFS(D20:D19838,D9,E20:E19838,"Kauf"),"") -> 23.5 | H9: =SUMIFS(G$20:G$19833,D$20:D$19833,D9,E$20:E$19833,"Kauf") -> 15319 | J9: =SUMIFS(G$20:G$19833,D$20:D$19833,D9,E$20:E$19833,J$3) -> 1888.179 | K9: 13430.821 | L9: =IFERROR(VLOOKUP(C9,Kurse!A:F,3,0)*VLOOKUP(R9,Währung!C:D,2,0)," ") -> 24.2 | M9: =IF(N9>0,N9,IF(E9<1," ",E9*L9)) -> 14979.8 | N9: =SUMIFS(G$20:G$19833,D$20:D$19833,D9,E$20:E$19833,"Verkauf") -> 0 | O9: =IF(E9<1," ",(IF(N9>0,N9-H9+J9,M9-H9+J9))) -> 1548.979 | P9: 0 | Q9: 21.69761066 | R9: =VLOOKUP(C9,Kurse!A:F,4,0) -> EUR | S9: =IFERROR(O9/H9/((TODAY()-_xlfn.MINIFS(B$20:B$386,C$20:C$386,C9))/365),"") -> 0.03015272455 | T9: 0.10111489
E10: =IF((SUMIFS(H$20:H$19833,D$20:D$19833,D10,E$20:E$19833,"Splitt")>0),SUMIFS(H$20:H$19833,D$20:D$19833,D10,E$20:E$19833,"Splitt"),SUMIFS(H$20:H$19833,D$20:D$19833,D10,E$20:E$19833,"Kauf"))-F10 -> 0 | F10: =SUMIFS(H$20:H$19833,D$20:D$19833,D10,E$20:E$19833,"Verkauf") -> 0 | G10: =IFERROR(SUMIF(D20:D19839,D10,J20:J19839)/COUNTIFS(D20:D19839,D10,E20:E19839,"Kauf"),"") ->  | H10: =SUMIFS(G$20:G$19833,D$20:D$19833,D10,E$20:E$19833,"Kauf") -> 0 | J10: =SUMIFS(G$20:G$19833,D$20:D$19833,D10,E$20:E$19833,J$3) -> 0 | K10: 0 | L10: =IFERROR(VLOOKUP(C10,Kurse!A:F,3,0)*VLOOKUP(R10,Währung!C:D,2,0)," ") ->  | N10: =SUMIFS(G$20:G$19833,D$20:D$19833,D10,E$20:E$19833,"Verkauf") -> 0 | O10: =IF(E10<1," ",(IF(N10>0,N10-H10+J10,M10-H10+J10))) ->  | P10: 0 | R10: =VLOOKUP(C10,Kurse!A:F,4,0) ->  | S10: =IFERROR(O10/H10/((TODAY()-_xlfn.MINIFS(B$20:B$386,C$20:C$386,C10))/365),"") -> 
E11: =IF((SUMIFS(H$20:H$19833,D$20:D$19833,D11,E$20:E$19833,"Splitt")>0),SUMIFS(H$20:H$19833,D$20:D$19833,D11,E$20:E$19833,"Splitt"),SUMIFS(H$20:H$19833,D$20:D$19833,D11,E$20:E$19833,"Kauf"))-F11 -> 0 | F11: =SUMIFS(H$20:H$19833,D$20:D$19833,D11,E$20:E$19833,"Verkauf") -> 0 | G11: =IFERROR(SUMIF(D20:D19840,D11,J20:J19840)/COUNTIFS(D20:D19840,D11,E20:E19840,"Kauf"),"") ->  | H11: =SUMIFS(G$20:G$19833,D$20:D$19833,D11,E$20:E$19833,"Kauf") -> 0 | J11: =SUMIFS(G$20:G$19833,D$20:D$19833,D11,E$20:E$19833,J$3) -> 0 | K11: 0 | L11: =IFERROR(VLOOKUP(C11,Kurse!A:F,3,0)*VLOOKUP(R11,Währung!C:D,2,0)," ") ->  | N11: =SUMIFS(G$20:G$19833,D$20:D$19833,D11,E$20:E$19833,"Verkauf") -> 0 | P11: 0 | R11: =VLOOKUP(C11,Kurse!A:F,4,0) ->  | S11: =IFERROR(O11/H11/((TODAY()-_xlfn.MINIFS(B$20:B$386,C$20:C$386,C11))/365),"") -> 
E12: =IF((SUMIFS(H$20:H$19833,D$20:D$19833,D12,E$20:E$19833,"Splitt")>0),SUMIFS(H$20:H$19833,D$20:D$19833,D12,E$20:E$19833,"Splitt"),SUMIFS(H$20:H$19833,D$20:D$19833,D12,E$20:E$19833,"Kauf"))-F12 -> 0 | F12: =SUMIFS(H$20:H$19833,D$20:D$19833,D12,E$20:E$19833,"Verkauf") -> 0 | G12: =IFERROR(SUMIF(D20:D19841,D12,J20:J19841)/COUNTIFS(D20:D19841,D12,E20:E19841,"Kauf"),"") ->  | H12: =SUMIFS(G$20:G$19833,D$20:D$19833,D12,E$20:E$19833,"Kauf") -> 0 | J12: =SUMIFS(G$20:G$19833,D$20:D$19833,D12,E$20:E$19833,J$3) -> 0 | K12: 0 | L12: =IFERROR(VLOOKUP(C12,Kurse!A:F,3,0)*VLOOKUP(R12,Währung!C:D,2,0)," ") ->  | N12: =SUMIFS(G$20:G$19833,D$20:D$19833,D12,E$20:E$19833,"Verkauf") -> 0 | P12: 0 | R12: =VLOOKUP(C12,Kurse!A:F,4,0) ->  | S12: =IFERROR(O12/H12/((TODAY()-_xlfn.MINIFS(B$20:B$386,C$20:C$386,C12))/365),"") -> 
E13: =IF((SUMIFS(H$20:H$19833,D$20:D$19833,D13,E$20:E$19833,"Splitt")>0),SUMIFS(H$20:H$19833,D$20:D$19833,D13,E$20:E$19833,"Splitt"),SUMIFS(H$20:H$19833,D$20:D$19833,D13,E$20:E$19833,"Kauf"))-F13 -> 0 | F13: =SUMIFS(H$20:H$19833,D$20:D$19833,D13,E$20:E$19833,"Verkauf") -> 0 | G13: =IFERROR(SUMIF(D20:D19842,D13,J20:J19842)/COUNTIFS(D20:D19842,D13,E20:E19842,"Kauf"),"") ->  | H13: =SUMIFS(G$20:G$19833,D$20:D$19833,D13,E$20:E$19833,"Kauf") -> 0 | J13: =SUMIFS(G$20:G$19833,D$20:D$19833,D13,E$20:E$19833,J$3) -> 0 | K13: =IF(H13-J13 < 0,0,H13-J13) -> 0 | L13: =IFERROR(VLOOKUP(C13,Kurse!A:F,3,0)*VLOOKUP(R13,Währung!C:D,2,0)," ") ->  | M13: =IF(N13>0,N13,IF(E13<1," ",E13*L13)) ->  | N13: =SUMIFS(G$20:G$19833,D$20:D$19833,D13,E$20:E$19833,"Verkauf") -> 0 | O13: =IF(E13<1," ",(IF(N13>0,N13-H13+J13,M13-H13+J13))) ->  | P13: 0 | R13: =VLOOKUP(C13,Kurse!A:F,4,0) ->  | S13: =IFERROR(O13/H13/((TODAY()-_xlfn.MINIFS(B$20:B$386,C$20:C$386,C13))/365),"") -> 
E14: =IF((SUMIFS(H$20:H$19833,D$20:D$19833,D14,E$20:E$19833,"Splitt")>0),SUMIFS(H$20:H$19833,D$20:D$19833,D14,E$20:E$19833,"Splitt"),SUMIFS(H$20:H$19833,D$20:D$19833,D14,E$20:E$19833,"Kauf"))-F14 -> 0 | F14: =SUMIFS(H$20:H$19833,D$20:D$19833,D14,E$20:E$19833,"Verkauf") -> 0 | G14: =IFERROR(SUMIF(D21:D19843,D14,J21:J19843)/COUNTIFS(D21:D19843,D14,E21:E19843,"Kauf"),"") ->  | H14: =SUMIFS(G$20:G$19833,D$20:D$19833,D14,E$20:E$19833,"Kauf") -> 0 | J14: =SUMIFS(G$20:G$19833,D$20:D$19833,D14,E$20:E$19833,J$3) -> 0 | K14: 0 | L14: =IFERROR(VLOOKUP(C14,Kurse!A:F,3,0)*VLOOKUP(R14,Währung!C:D,2,0)," ") ->  | N14: =SUMIFS(G$20:G$19833,D$20:D$19833,D14,E$20:E$19833,"Verkauf") -> 0 | P14: 0 | R14: =VLOOKUP(C14,Kurse!A:F,4,0) ->  | S14: =IFERROR(O14/H14/((TODAY()-_xlfn.MINIFS(B$20:B$386,C$20:C$386,C14))/365),"") -> 
E15: =IF((SUMIFS(H$20:H$19833,D$20:D$19833,D15,E$20:E$19833,"Splitt")>0),SUMIFS(H$20:H$19833,D$20:D$19833,D15,E$20:E$19833,"Splitt"),SUMIFS(H$20:H$19833,D$20:D$19833,D15,E$20:E$19833,"Kauf"))-F15 -> 0 | F15: =SUMIFS(H$20:H$19833,D$20:D$19833,D15,E$20:E$19833,"Verkauf") -> 0 | G15: =IFERROR(SUMIF(D21:D19844,D15,J21:J19844)/COUNTIFS(D21:D19844,D15,E21:E19844,"Kauf"),"") ->  | H15: =SUMIFS(G$20:G$19833,D$20:D$19833,D15,E$20:E$19833,"Kauf") -> 0 | J15: =SUMIFS(G$20:G$19833,D$20:D$19833,D15,E$20:E$19833,J$3) -> 0 | K15: 0 | L15: =IFERROR(VLOOKUP(C15,Kurse!A:F,3,0)*VLOOKUP(R15,Währung!C:D,2,0)," ") ->  | N15: =SUMIFS(G$20:G$19833,D$20:D$19833,D15,E$20:E$19833,"Verkauf") -> 0 | P15: 0 | R15: =VLOOKUP(C15,Kurse!A:F,4,0) ->  | S15: =IFERROR(O15/H15/((TODAY()-_xlfn.MINIFS(B$20:B$386,C$20:C$386,C15))/365),"") -> 
E16: =IF((SUMIFS(H$20:H$19833,D$20:D$19833,D16,E$20:E$19833,"Splitt")>0),SUMIFS(H$20:H$19833,D$20:D$19833,D16,E$20:E$19833,"Splitt"),SUMIFS(H$20:H$19833,D$20:D$19833,D16,E$20:E$19833,"Kauf"))-F16 -> 0 | F16: =SUMIFS(H$20:H$19833,D$20:D$19833,D16,E$20:E$19833,"Verkauf") -> 0 | G16: =IFERROR(SUMIF(D22:D19845,D16,J22:J19845)/COUNTIFS(D22:D19845,D16,E22:E19845,"Kauf"),"") ->  | H16: =SUMIFS(G$20:G$19833,D$20:D$19833,D16,E$20:E$19833,"Kauf") -> 0 | J16: =SUMIFS(G$20:G$19833,D$20:D$19833,D16,E$20:E$19833,J$3) -> 0 | K16: =IF(H16-J16 < 0,0,H16-J16) -> 0 | L16: =IFERROR(VLOOKUP(C16,Kurse!A:F,3,0)*VLOOKUP(R16,Währung!C:D,2,0)," ") ->  | M16: =IF(N16>0,N16,IF(E16<1," ",E16*L16)) ->  | N16: =SUMIFS(G$20:G$19833,D$20:D$19833,D16,E$20:E$19833,"Verkauf") -> 0 | O16: =IF(E16<1," ",(IF(N16>0,N16-H16+J16,M16-H16+J16))) ->  | P16: =IF(N16>0,O16,0) -> 0 | R16: =VLOOKUP(C16,Kurse!A:F,4,0) ->  | S16: =IFERROR(O16/H16/((TODAY()-_xlfn.MINIFS(B$20:B$386,C$20:C$386,C16))/365),"") -> 
G18: =SUBTOTAL(9,G20:G1833) -> 37661.239 | H18: =IF(SUBTOTAL(9,H20:H1833)<1," ",SUBTOTAL(9,H20:H1833)) -> 2670
B19: Datum | C19: Aktie | D19: WKN | E19: Aktion | F19: Spalte2 | G19: Kosten | H19: Anzahl | I19: Spalte3 | J19: Kurs | K19: Dividende/Aktie
B20: 38090 | C20: Telefonaktiebolaget LM Ericsson Class B | D20: 850001 | E20: Kauf | F20: =IF(Tabelle5[[#This Row],[Aktion]] = "Verkauf"," ",IF(Tabelle5[[#This Row],[Aktion]] = "Kauf"," ",Tabelle5[[#This Row],[Kosten]])) ->  | G20: =IF(Tabelle5[[#This Row],[Aktion]] = "Verkauf",Tabelle5[[#This Row],[Anzahl]]*Tabelle5[[#This Row],[Kurs]],IF(Tabelle5[[#This Row],[Aktion]] = "Kauf",Tabelle5[[#This Row],[Anzahl]]*Tabelle5[[#This Row],[Kurs]])) -> 500 | H20: 500 | I20: =IF("Dividende" = E20,SUMIFS(H$20:H20,D$20:D20,D20,E$20:E20,"Kauf")," ") ->  | J20: 1 | K20: =IF("Dividende" = E20,G20/SUMIFS(H$20:H20,D$20:D20,D20,E$20:E20,"Kauf")," ") -> 
B21: 38384 | C21: Deutsche Telekom AG | D21: 555750 | E21: Kauf | F21: =IF(Tabelle5[[#This Row],[Aktion]] = "Verkauf"," ",IF(Tabelle5[[#This Row],[Aktion]] = "Kauf"," ",Tabelle5[[#This Row],[Kosten]])) ->  | G21: =IF(Tabelle5[[#This Row],[Aktion]] = "Verkauf",Tabelle5[[#This Row],[Anzahl]]*Tabelle5[[#This Row],[Kurs]],IF(Tabelle5[[#This Row],[Aktion]] = "Kauf",Tabelle5[[#This Row],[Anzahl]]*Tabelle5[[#This Row],[Kurs]])) -> 0 | H21: 1 | I21: =IF("Dividende" = E21,SUMIFS(H$20:H21,D$20:D21,D21,E$20:E21,"Kauf")," ") ->  | J21: 0 | K21: =IF("Dividende" = E21,G21/SUMIFS(H$20:H21,D$20:D21,D21,E$20:E21,"Kauf")," ") -> 
B22: 43794 | C22: BRITISH AMERICAN TOBACCO PLC ADS Common Stock | D22: 916018 | E22: Kauf | F22: =IF(Tabelle5[[#This Row],[Aktion]] = "Verkauf"," ",IF(Tabelle5[[#This Row],[Aktion]] = "Kauf"," ",Tabelle5[[#This Row],[Kosten]])) ->  | G22: =IF(Tabelle5[[#This Row],[Aktion]] = "Verkauf",Tabelle5[[#This Row],[Anzahl]]*Tabelle5[[#This Row],[Kurs]],IF(Tabelle5[[#This Row],[Aktion]] = "Kauf",Tabelle5[[#This Row],[Anzahl]]*Tabelle5[[#This Row],[Kurs]])) -> 6000 | H22: 300 | I22: =IF("Dividende" = E22,SUMIFS(H$20:H22,D$20:D22,D22,E$20:E22,"Kauf")," ") ->  | J22: 20 | K22: =IF("Dividende" = E22,G22/SUMIFS(H$20:H22,D$20:D22,D22,E$20:E22,"Kauf")," ") -> 
B23: 43794 | C23: Kraft Heinz Co | D23: A14TU4 | E23: Kauf | F23: =IF(Tabelle5[[#This Row],[Aktion]] = "Verkauf"," ",IF(Tabelle5[[#This Row],[Aktion]] = "Kauf"," ",Tabelle5[[#This Row],[Kosten]])) ->  | G23: =IF(Tabelle5[[#This Row],[Aktion]] = "Verkauf",Tabelle5[[#This Row],[Anzahl]]*Tabelle5[[#This Row],[Kurs]],IF(Tabelle5[[#This Row],[Aktion]] = "Kauf",Tabelle5[[#This Row],[Anzahl]]*Tabelle5[[#This Row],[Kurs]])) -> 5250 | H23: 350 | I23: =IF("Dividende" = E23,SUMIFS(H$20:H23,D$20:D23,D23,E$20:E23,"Kauf")," ") ->  | J23: 15 | K23: =IF("Dividende" = E23,G23/SUMIFS(H$20:H23,D$20:D23,D23,E$20:E23,"Kauf")," ") -> 
B24: 43796 | C24: Prosiebensat 1 Media SE | D24: PSM777 | E24: Kauf | F24: =IF(Tabelle5[[#This Row],[Aktion]] = "Verkauf"," ",IF(Tabelle5[[#This Row],[Aktion]] = "Kauf"," ",Tabelle5[[#This Row],[Kosten]])) ->  | G24: =IF(Tabelle5[[#This Row],[Aktion]] = "Verkauf",Tabelle5[[#This Row],[Anzahl]]*Tabelle5[[#This Row],[Kurs]],IF(Tabelle5[[#This Row],[Aktion]] = "Kauf",Tabelle5[[#This Row],[Anzahl]]*Tabelle5[[#This Row],[Kurs]])) -> 3750 | H24: 750 | I24: =IF("Dividende" = E24,SUMIFS(H$20:H24,D$20:D24,D24,E$20:E24,"Kauf")," ") ->  | J24: 5 | K24: =IF("Dividende" = E24,G24/SUMIFS(H$20:H24,D$20:D24,D24,E$20:E24,"Kauf")," ") -> 
B25: 44260 | C25: BRITISH AMERICAN TOBACCO PLC ADS Common Stock | D25: 916018 | E25: Kauf | F25: =IF(Tabelle5[[#This Row],[Aktion]] = "Verkauf"," ",IF(Tabelle5[[#This Row],[Aktion]] = "Kauf"," ",Tabelle5[[#This Row],[Kosten]])) ->  | G25: =IF(Tabelle5[[#This Row],[Aktion]] = "Verkauf",Tabelle5[[#This Row],[Anzahl]]*Tabelle5[[#This Row],[Kurs]],IF(Tabelle5[[#This Row],[Aktion]] = "Kauf",Tabelle5[[#This Row],[Anzahl]]*Tabelle5[[#This Row],[Kurs]])) -> 2700 | H25: 150 | I25: =IF("Dividende" = E25,SUMIFS(H$20:H25,D$20:D25,D25,E$20:E25,"Kauf")," ") ->  | J25: 18 | K25: =IF("Dividende" = E25,G25/SUMIFS(H$20:H25,D$20:D25,D25,E$20:E25,"Kauf")," ") -> 
B26: 44533 | C26: Dow Inc | D26: A2PFRC | E26: Kauf | F26: =IF(Tabelle5[[#This Row],[Aktion]] = "Verkauf"," ",IF(Tabelle5[[#This Row],[Aktion]] = "Kauf"," ",Tabelle5[[#This Row],[Kosten]])) ->  | G26: =IF(Tabelle5[[#This Row],[Aktion]] = "Verkauf",Tabelle5[[#This Row],[Anzahl]]*Tabelle5[[#This Row],[Kurs]],IF(Tabelle5[[#This Row],[Aktion]] = "Kauf",Tabelle5[[#This Row],[Anzahl]]*Tabelle5[[#This Row],[Kurs]])) -> 4300 | H26: 172 | I26: =IF("Dividende" = E26,SUMIFS(H$20:H26,D$20:D26,D26,E$20:E26,"Kauf")," ") ->  | J26: 25 | K26: =IF("Dividende" = E26,G26/SUMIFS(H$20:H26,D$20:D26,D26,E$20:E26,"Kauf")," ") -> 
B27: 44841 | C27: Dow Inc | D27: A2PFRC | E27: Kauf | F27: =IF(Tabelle5[[#This Row],[Aktion]] = "Verkauf"," ",IF(Tabelle5[[#This Row],[Aktion]] = "Kauf"," ",Tabelle5[[#This Row],[Kosten]])) ->  | G27: =IF(Tabelle5[[#This Row],[Aktion]] = "Verkauf",Tabelle5[[#This Row],[Anzahl]]*Tabelle5[[#This Row],[Kurs]],IF(Tabelle5[[#This Row],[Aktion]] = "Kauf",Tabelle5[[#This Row],[Anzahl]]*Tabelle5[[#This Row],[Kurs]])) -> 3759 | H27: 179 | I27: =IF("Dividende" = E27,SUMIFS(H$20:H27,D$20:D27,D27,E$20:E27,"Kauf")," ") ->  | J27: 21 | K27: =IF("Dividende" = E27,G27/SUMIFS(H$20:H27,D$20:D27,D27,E$20:E27,"Kauf")," ") -> 
B28: 45237 | C28: Dow Inc | D28: A2PFRC | E28: Kauf | F28: =IF(Tabelle5[[#This Row],[Aktion]] = "Verkauf"," ",IF(Tabelle5[[#This Row],[Aktion]] = "Kauf"," ",Tabelle5[[#This Row],[Kosten]])) ->  | G28: =IF(Tabelle5[[#This Row],[Aktion]] = "Verkauf",Tabelle5[[#This Row],[Anzahl]]*Tabelle5[[#This Row],[Kurs]],IF(Tabelle5[[#This Row],[Aktion]] = "Kauf",Tabelle5[[#This Row],[Anzahl]]*Tabelle5[[#This Row],[Kurs]])) -> 5940 | H28: 180 | I28: =IF("Dividende" = E28,SUMIFS(H$20:H28,D$20:D28,D28,E$20:E28,"Kauf")," ") ->  | J28: 33 | K28: =IF("Dividende" = E28,G28/SUMIFS(H$20:H28,D$20:D28,D28,E$20:E28,"Kauf")," ") -> 
B29: 45295 | C29: Kraft Heinz Co | D29: A14TU4 | E29: Dividende | F29: =IF(Tabelle5[[#This Row],[Aktion]] = "Verkauf"," ",IF(Tabelle5[[#This Row],[Aktion]] = "Kauf"," ",Tabelle5[[#This Row],[Kosten]])) -> 95.08 | G29: 95.08 | I29: =IF("Dividende" = E29,SUMIFS(H$20:H29,D$20:D29,D29,E$20:E29,"Kauf")," ") -> 350 | K29: =IF("Dividende" = E29,G29/SUMIFS(H$20:H29,D$20:D29,D29,E$20:E29,"Kauf")," ") -> 0.2716571429
B30: 45328 | C30: BRITISH AMERICAN TOBACCO PLC ADS Common Stock | D30: 916018 | E30: Dividende | F30: =IF(Tabelle5[[#This Row],[Aktion]] = "Verkauf"," ",IF(Tabelle5[[#This Row],[Aktion]] = "Kauf"," ",Tabelle5[[#This Row],[Kosten]])) -> 303.6 | G30: 303.6 | I30: =IF("Dividende" = E30,SUMIFS(H$20:H30,D$20:D30,D30,E$20:E30,"Kauf")," ") -> 450 | K30: =IF("Dividende" = E30,G30/SUMIFS(H$20:H30,D$20:D30,D30,E$20:E30,"Kauf")," ") -> 0.6746666667
B31: 45378 | C31: Dow Inc | D31: A2PFRC | E31: Dividende | F31: =IF(Tabelle5[[#This Row],[Aktion]] = "Verkauf"," ",IF(Tabelle5[[#This Row],[Aktion]] = "Kauf"," ",Tabelle5[[#This Row],[Kosten]])) -> 344.16 | G31: 344.16 | I31: =IF("Dividende" = E31,SUMIFS(H$20:H31,D$20:D31,D31,E$20:E31,"Kauf")," ") -> 531 | K31: =IF("Dividende" = E31,G31/SUMIFS(H$20:H31,D$20:D31,D31,E$20:E31,"Kauf")," ") -> 0.6481355932
B32: 45387 | C32: Kraft Heinz Co | D32: A14TU4 | E32: Dividende | F32: =IF(Tabelle5[[#This Row],[Aktion]] = "Verkauf"," ",IF(Tabelle5[[#This Row],[Aktion]] = "Kauf"," ",Tabelle5[[#This Row],[Kosten]])) -> 110.06 | G32: 110.06 | I32: =IF("Dividende" = E32,SUMIFS(H$20:H32,D$20:D32,D32,E$20:E32,"Kauf")," ") -> 350 | K32: =IF("Dividende" = E32,G32/SUMIFS(H$20:H32,D$20:D32,D32,E$20:E32,"Kauf")," ") -> 0.3144571429
B33: 45394 | C33: Telefonaktiebolaget LM Ericsson Class B | D33: 850001 | E33: Dividende | F33: =IF(Tabelle5[[#This Row],[Aktion]] = "Verkauf"," ",IF(Tabelle5[[#This Row],[Aktion]] = "Kauf"," ",Tabelle5[[#This Row],[Kosten]])) -> 8.15 | G33: 8.15 | I33: =IF("Dividende" = E33,SUMIFS(H$20:H33,D$20:D33,D33,E$20:E33,"Kauf")," ") -> 500 | K33: =IF("Dividende" = E33,G33/SUMIFS(H$20:H33,D$20:D33,D33,E$20:E33,"Kauf")," ") -> 0.0163
B34: 45398 | C34: Deutsche Telekom AG | D34: 555750 | E34: Dividende | F34: =IF(Tabelle5[[#This Row],[Aktion]] = "Verkauf"," ",IF(Tabelle5[[#This Row],[Aktion]] = "Kauf"," ",Tabelle5[[#This Row],[Kosten]])) -> 0.77 | G34: 0.77 | I34: =IF("Dividende" = E34,SUMIFS(H$20:H34,D$20:D34,D34,E$20:E34,"Kauf")," ") -> 1 | K34: =IF("Dividende" = E34,G34/SUMIFS(H$20:H34,D$20:D34,D34,E$20:E34,"Kauf")," ") -> 0.77
B35: 45418 | C35: BRITISH AMERICAN TOBACCO PLC ADS Common Stock | D35: 916018 | E35: Dividende | F35: =IF(Tabelle5[[#This Row],[Aktion]] = "Verkauf"," ",IF(Tabelle5[[#This Row],[Aktion]] = "Kauf"," ",Tabelle5[[#This Row],[Kosten]])) -> 308.69 | G35: 308.69 | I35: =IF("Dividende" = E35,SUMIFS(H$20:H35,D$20:D35,D35,E$20:E35,"Kauf")," ") -> 450 | K35: =IF("Dividende" = E35,G35/SUMIFS(H$20:H35,D$20:D35,D35,E$20:E35,"Kauf")," ") -> 0.6859777778
B36: 45418 | C36: Prosiebensat 1 Media SE | D36: PSM777 | E36: Dividende | F36: =IF(Tabelle5[[#This Row],[Aktion]] = "Verkauf"," ",IF(Tabelle5[[#This Row],[Aktion]] = "Kauf"," ",Tabelle5[[#This Row],[Kosten]])) -> 37.5 | G36: 37.5 | I36: =IF("Dividende" = E36,SUMIFS(H$20:H50,D$20:D50,D36,E$20:E50,"Kauf")," ") -> 750 | K36: =IF("Dividende" = E36,G36/SUMIFS(H$20:H36,D$20:D36,D36,E$20:E36,"Kauf")," ") -> 0.05
B37: 45469 | C37: Dow Inc | D37: A2PFRC | E37: Dividende | F37: =IF(Tabelle5[[#This Row],[Aktion]] = "Verkauf"," ",IF(Tabelle5[[#This Row],[Aktion]] = "Kauf"," ",Tabelle5[[#This Row],[Kosten]])) -> 352.2 | G37: 352.2 | I37: =IF("Dividende" = E37,SUMIFS(H$20:H37,D$20:D37,D37,E$20:E37,"Kauf")," ") -> 531 | K37: =IF("Dividende" = E37,G37/SUMIFS(H$20:H50,D$20:D50,D37,E$20:E50,"Kauf")," ") -> 0.5689822294
B38: 45476 | C38: Kraft Heinz Co | D38: A14TU4 | E38: Dividende | F38: =IF(Tabelle5[[#This Row],[Aktion]] = "Verkauf"," ",IF(Tabelle5[[#This Row],[Aktion]] = "Kauf"," ",Tabelle5[[#This Row],[Kosten]])) -> 110.67 | G38: 110.67 | I38: =IF("Dividende" = E38,SUMIFS(H$20:H50,D$20:D50,D38,E$20:E50,"Kauf")," ") -> 350 | K38: =IF("Dividende" = E38,G38/SUMIFS(H$20:H50,D$20:D50,D38,E$20:E50,"Kauf")," ") -> 0.3162
B39: 45510 | C39: BRITISH AMERICAN TOBACCO PLC ADS Common Stock | D39: 916018 | E39: Dividende | F39: =IF(Tabelle5[[#This Row],[Aktion]] = "Verkauf"," ",IF(Tabelle5[[#This Row],[Aktion]] = "Kauf"," ",Tabelle5[[#This Row],[Kosten]])) -> 307.65 | G39: 307.65 | I39: =IF("Dividende" = E39,SUMIFS(H$20:H50,D$20:D50,D39,E$20:E50,"Kauf")," ") -> 450 | K39: =IF("Dividende" = E39,G39/SUMIFS(H$20:H50,D$20:D50,D39,E$20:E50,"Kauf")," ") -> 0.6836666667
B40: 45568 | C40: Kraft Heinz Co | D40: A14TU4 | E40: Dividende | F40: =IF(Tabelle5[[#This Row],[Aktion]] = "Verkauf"," ",IF(Tabelle5[[#This Row],[Aktion]] = "Kauf"," ",Tabelle5[[#This Row],[Kosten]])) -> 106.93 | G40: 106.93 | I40: =IF("Dividende" = E40,SUMIFS(H$20:H50,D$20:D50,D46,E$20:E50,"Kauf")," ") -> 350 | K40: =IF("Dividende" = E40,G40/SUMIFS(H$20:H50,D$20:D50,D46,E$20:E50,"Kauf")," ") -> 0.3055142857
B41: 45548 | C41: Dow Inc | D41: A2PFRC | E41: Dividende | F41: =IF(Tabelle5[[#This Row],[Aktion]] = "Verkauf"," ",IF(Tabelle5[[#This Row],[Aktion]] = "Kauf"," ",Tabelle5[[#This Row],[Kosten]])) -> 336.689 | G41: 336.689 | I41: =IF("Dividende" = E41,SUMIFS(H$20:H50,D$20:D50,D41,E$20:E50,"Kauf")," ") -> 619 | K41: =IF("Dividende" = E41,G41/SUMIFS(H$20:H50,D$20:D50,D41,E$20:E50,"Kauf")," ") -> 0.5439240711
B42: 45572 | C42: Telefonaktiebolaget LM Ericsson Class B | D42: 850001 | E42: Dividende | F42: =IF(Tabelle5[[#This Row],[Aktion]] = "Verkauf"," ",IF(Tabelle5[[#This Row],[Aktion]] = "Kauf"," ",Tabelle5[[#This Row],[Kosten]])) -> 8.29 | G42: 8.29 | I42: =IF("Dividende" = E42,SUMIFS(H$20:H50,D$20:D50,D42,E$20:E50,"Kauf")," ") -> 500 | K42: =IF("Dividende" = E42,G42/SUMIFS(H$20:H50,D$20:D50,D42,E$20:E50,"Kauf")," ") -> 0.01658
B43: 45574 | C43: Dow Inc | D43: A2PFRC | E43: Kauf | F43: =IF(Tabelle5[[#This Row],[Aktion]] = "Verkauf"," ",IF(Tabelle5[[#This Row],[Aktion]] = "Kauf"," ",Tabelle5[[#This Row],[Kosten]])) ->  | G43: =IF(Tabelle5[[#This Row],[Aktion]] = "Verkauf",Tabelle5[[#This Row],[Anzahl]]*Tabelle5[[#This Row],[Kurs]],IF(Tabelle5[[#This Row],[Aktion]] = "Kauf",Tabelle5[[#This Row],[Anzahl]]*Tabelle5[[#This Row],[Kurs]])) -> 1320 | H43: 88 | I43: =IF("Dividende" = E43,SUMIFS(H$20:H50,D$20:D50,D43,E$20:E50,"Kauf")," ") ->  | J43: 15 | K43: =IF("Dividende" = E43,G43/SUMIFS(H$20:H51,D$20:D51,D43,E$20:E51,"Kauf")," ") -> 
B44: 45601 | C44: BRITISH AMERICAN TOBACCO PLC ADS Common Stock | D44: 916018 | E44: Dividende | F44: =IF(Tabelle5[[#This Row],[Aktion]] = "Verkauf"," ",IF(Tabelle5[[#This Row],[Aktion]] = "Kauf"," ",Tabelle5[[#This Row],[Kosten]])) -> 314.01 | G44: 314.01 | I44: =IF("Dividende" = E44,SUMIFS(H$20:H50,D$20:D50,D44,E$20:E50,"Kauf")," ") -> 450 | K44: =IF("Dividende" = E44,G44/SUMIFS(H$20:H52,D$20:D52,D44,E$20:E52,"Kauf")," ") -> 0.6978
B45: 45639 | C45: Dow Inc | D45: A2PFRC | E45: Dividende | F45: =IF(Tabelle5[[#This Row],[Aktion]] = "Verkauf"," ",IF(Tabelle5[[#This Row],[Aktion]] = "Kauf"," ",Tabelle5[[#This Row],[Kosten]])) -> 421.83 | G45: 421.83 | I45: =IF("Dividende" = E45,SUMIFS(H$20:H50,D$20:D50,D45,E$20:E50,"Kauf")," ") -> 619 | K45: =IF("Dividende" = E45,G45/SUMIFS(H$20:H53,D$20:D53,D45,E$20:E53,"Kauf")," ") -> 0.6814701131
B46: 45653 | C46: Kraft Heinz Co | D46: A14TU4 | E46: Dividende | F46: =IF(Tabelle5[[#This Row],[Aktion]] = "Verkauf"," ",IF(Tabelle5[[#This Row],[Aktion]] = "Kauf"," ",Tabelle5[[#This Row],[Kosten]])) -> 105.89 | G46: 105.89 | I46: =IF("Dividende" = E46,SUMIFS(H$20:H50,D$20:D50,#REF!,E$20:E50,"Kauf")," ") -> 0 | K46: =IF("Dividende" = E46,G46/SUMIFS(H$20:H54,D$20:D54,D46,E$20:E54,"Kauf")," ") -> 0.3025428571
B47: 45693 | C47: BRITISH AMERICAN TOBACCO PLC ADS Common Stock | D47: 916018 | E47: Dividende | F47: =IF(Tabelle5[[#This Row],[Aktion]] = "Verkauf"," ",IF(Tabelle5[[#This Row],[Aktion]] = "Kauf"," ",Tabelle5[[#This Row],[Kosten]])) -> 317.44 | G47: 317.44 | I47: =IF("Dividende" = E47,SUMIFS(H$20:H50,D$20:D50,D47,E$20:E50,"Kauf")," ") -> 450 | K47: =IF("Dividende" = E47,G47/SUMIFS(H$20:H55,D$20:D55,D47,E$20:E55,"Kauf")," ") -> 0.7054222222
B48: 45748 | C48: Dow Inc | D48: A2PFRC | E48: Dividende | F48: =IF(Tabelle5[[#This Row],[Aktion]] = "Verkauf"," ",IF(Tabelle5[[#This Row],[Aktion]] = "Kauf"," ",Tabelle5[[#This Row],[Kosten]])) -> 433.3 | G48: 433.3 | I48: =IF("Dividende" = E48,SUMIFS(H$20:H50,D$20:D50,D48,E$20:E50,"Kauf")," ") -> 619 | K48: =IF("Dividende" = E48,G48/SUMIFS(H$20:H56,D$20:D56,D48,E$20:E56,"Kauf")," ") -> 0.7
B49: 45749 | C49: Kraft Heinz Co | D49: A14TU4 | E49: Dividende | F49: =IF(Tabelle5[[#This Row],[Aktion]] = "Verkauf"," ",IF(Tabelle5[[#This Row],[Aktion]] = "Kauf"," ",Tabelle5[[#This Row],[Kosten]])) -> 110.08 | G49: 110.08 | I49: =IF("Dividende" = E49,SUMIFS(H$20:H50,D$20:D50,D49,E$20:E50,"Kauf")," ") -> 350 | K49: =IF("Dividende" = E49,G49/SUMIFS(H$20:H57,D$20:D57,D49,E$20:E57,"Kauf")," ") -> 0.3145142857
B50: 45751 | C50: Telefonaktiebolaget LM Ericsson Class B | D50: 850001 | E50: Dividende | F50: =IF(Tabelle5[[#This Row],[Aktion]] = "Verkauf"," ",IF(Tabelle5[[#This Row],[Aktion]] = "Kauf"," ",Tabelle5[[#This Row],[Kosten]])) -> 9.25 | G50: 9.25 | I50: =IF("Dividende" = E50,SUMIFS(H$20:H50,D$20:D50,D50,E$20:E50,"Kauf")," ") -> 500 | K50: =IF("Dividende" = E50,G50/SUMIFS(H$20:H58,D$20:D58,D50,E$20:E58,"Kauf")," ") -> 0.0185

Sheet Kursentwicklung
C2: =Aktien!C4 -> Telefonaktiebolaget LM Ericsson Class B | D2: =Aktien!C5 -> Deutsche Telekom AG | E2: =Aktien!C6 -> Kraft Heinz Co | F2: =Aktien!C7 -> BRITISH AMERICAN TOBACCO PLC ADS Common Stock | G2: =Aktien!C8 -> Prosiebensat 1 Media SE | H2: =Aktien!C9 -> Dow Inc | I2: =Aktien!C16 -> 0
C3: =CONCATENATE("WKN"," ",Aktien!D4) -> WKN 850001 | D3: =CONCATENATE("WKN"," ",Aktien!D5) -> WKN 555750 | E3: =CONCATENATE("WKN"," ",Aktien!D6) -> WKN A14TU4 | F3: =CONCATENATE("WKN"," ",Aktien!D7) -> WKN 916018 | G3: =CONCATENATE("WKN"," ",Aktien!D8) -> WKN PSM777 | H3: =CONCATENATE("WKN"," ",Aktien!D9) -> WKN A2PFRC | I3: =CONCATENATE("WKN"," ",Aktien!D16) -> WKN | J3: Gesamt | K3: =Aktien!O3 -> Gewinn/Verlust | L3: Kapital | M3: Gewinn (%)
A4: =B4 -> 45757.93596 | B4: =Aktien!L2 -> 45757.93596 | C4: =ROUND(Aktien!L4,4) -> 6.37 | D4: =ROUND(Aktien!L5,4) -> 30.9493 | E4: =ROUND(Aktien!L6,4) -> 25.7673 | F4: =ROUND(Aktien!L7,4) -> 37.3018 | G4: =ROUND(Aktien!L8,4) -> 5.68 | H4: =ROUND(Aktien!L9,4) -> 24.2 | I4: =ROUND(Aktien!L16,4) ->  | J4: =ROUND(Aktien!M2,2) -> 48260.08 | K4: =ROUND(Aktien!O2,2) -> 18883.32 | L4: =ROUND(J4-K4,2) -> 29376.76 | M4: =ROUND((J4/L4)-100%,4) -> 0.6428 | N4: =IF(AND(INDIRECT("L33")-L4 < 0.1,INDIRECT("L33")-L4 > -0.1)," ",INDIRECT("L33")-L4) -> 
B5: Diff. min | C5: =C4-MIN(C23:C164) -> 0.34 | D5: =D4-MIN(D23:D176) -> 2.8231 | E5: =E4-MIN(E23:E164) -> 0.6712 | F5: =F4-MIN(F23:F164) -> 3.4273 | G5: =G4-MIN(G23:G164) -> 0.9 | H5: =H4-MIN(H23:H164) -> 1.3 | I5: =I4-MIN(I18:I164) -> 
B6: Diff.max | C6: =C4-MAX(C23:C164) -> -2.12 | D6: =D4-MAX(D23:D176) -> -4.3904 | E6: =E4-MAX(E23:E176) -> -4.6972 | F6: =F4-MAX(F23:F176) -> -4.8759 | G6: =G4-MAX(G23:G176) -> -1.2 | H6: =H4-MAX(H23:H176) -> -16.23 | I6: =I4-MAX(I18:I176) -> 
C7: =C5+C6 -> -1.78 | D7: =D5+D6 -> -1.5673 | E7: -4.026 | F7: -1.4486 | G7: -0.3 | H7: -14.93
D9: Daten werden aktualisiert, einen Moment.
B15: Spalte1 | C15: Spalte2 | D15: Spalte3 | E15: Spalte4 | F15: Spalte5 | G15: Spalte6 | H15: Spalte7 | I15: Spalte8 | J15: Spalte9 | K15: Spalte10 | L15: Spalte11 | M15: Spalte12
C18: =C3 -> WKN 850001 | D18: =D3 -> WKN 555750 | E18: WKN A14TU4 | F18: WKN 916018 | G18: WKN PSM777 | H18: WKN A2PFRC | I18: WKN | J18: Gesamt | K18: Gewinn/Verlust | L18: Kapital | M18: Gewinn (%)
B19: max. Kurs | C19: =MAX((INDIRECT("C21")) :#REF!) ->  | D19: =MAX((INDIRECT("D21")) : D170) -> 35.3397 | E19: =MAX((INDIRECT("E21")) : E170) -> 30.4645 | F19: =MAX((INDIRECT("F21")) : F170) -> 42.1777 | G19: =MAX((INDIRECT("G21")) : G170) -> 6.88 | H19: =MAX((INDIRECT("H21")) : H170) -> 40.43 | I19: =MAX((INDIRECT("I21")) : I170) ->  | J19: =MAX((INDIRECT("J21")) : J170) -> 57136.17 | K19: =MAX((INDIRECT("K21")) : K170) -> 27759.41 | L19: =MAX((INDIRECT("L21")) : L170) -> 30361.97 | M19: =MAX((INDIRECT("M21")) :M170) -> 0.9272104301
C20: =AVERAGE(INDIRECT("C32"):INDIRECT("C52"))-AVERAGE(INDIRECT("C32"):INDIRECT("C92")) -> -0.4711631538 | D20: =AVERAGE(INDIRECT("D32"):INDIRECT("D52"))-AVERAGE(INDIRECT("D32"):INDIRECT("D92")) -> -0.3373232631 | E20: =AVERAGE(INDIRECT("E32"):INDIRECT("E52"))-AVERAGE(INDIRECT("E32"):INDIRECT("E92")) -> -0.9620508977 | F20: =AVERAGE(INDIRECT("F32"):INDIRECT("F52"))-AVERAGE(INDIRECT("F32"):INDIRECT("F92")) -> 0.3674584699 | G20: =AVERAGE(INDIRECT("G32"):INDIRECT("G52"))-AVERAGE(INDIRECT("G32"):INDIRECT("G92")) -> -0.1681576893 | H20: =AVERAGE(INDIRECT("H32"):INDIRECT("H52"))-AVERAGE(INDIRECT("H32"):INDIRECT("H92")) -> -3.481163154 | I20: =TREND(I147:I164) -> 249.8355556
C21: =TREND((INDIRECT("C32"):(INDIRECT("C52"))))-TREND((INDIRECT("C32"):(INDIRECT("C92")))) -> -0.7058578457 | D21: =TREND((INDIRECT("D32"):(INDIRECT("D52"))))-TREND((INDIRECT("D32"):(INDIRECT("D92")))) -> -1.2755394 | E21: =TREND((INDIRECT("E32"):(INDIRECT("E52"))))-TREND((INDIRECT("E32"):(INDIRECT("E92")))) -> -0.4839676593 | F21: =TREND((INDIRECT("F32"):(INDIRECT("F52"))))-TREND((INDIRECT("F32"):(INDIRECT("F92")))) -> -1.927213711 | G21: =TREND((INDIRECT("G32"):(INDIRECT("G52"))))-TREND((INDIRECT("G32"):(INDIRECT("G92")))) -> -0.6547709703 | H21: =TREND((INDIRECT("H32"):(INDIRECT("H52"))))-TREND((INDIRECT("H32"):(INDIRECT("H92")))) -> -3.923332967 | N21: Die Zeilen 20-29 müssen ausgeblendet bleiben.
N22: Formatierung funktioniert ansonsten nicht.
A32: 45757.92475 | B32: 45757.92475 | C32: 6.37 | D32: 31.1571 | E32: 25.9583 | F32: 37.5522 | G32: 5.68 | H32: 24.2 | J32: 48439.86 | K32: 19063.1 | L32: 29376.76 | M32: 0.6489177159
A33: 45757.61263 | B33: 45757.61263 | C33: 6.11 | D33: 32.8519 | E33: 26.1557 | F33: 34.6675 | G33: 5.63 | H33: 26.2 | I33: 248.49 | J33: 45839 | K33: 16462.24 | L33: 29376.76 | M33: 0.5603831056
A34: 45756.992 | B34: 45756.992 | C34: 6.11 | D34: 33.3775 | E34: 26.5741 | F34: 35.2221 | G34: 5.65 | H34: 23.8 | I34: 260.53 | J34: 44764.98 | K34: 15388.22 | L34: 29376.76 | M34: 0.5238229131
A35: 45756.62702 | B35: 45756.62702 | C35: 6.03 | D35: 30.815 | E35: 25.0961 | F35: 37.8571 | G35: 5.57 | H35: 22.9 | I35: 232.1 | J35: 44805.73 | K35: 15428.97 | L35: 29376.76 | M35: 0.525210064
A36: 45755.99541 | B36: 45755.99541 | C36: 6.5 | D36: 31.0233 | E36: 25.2657 | F36: 38.113 | G36: 5.59 | H36: 25.4 | I36: 232.9 | J36: 46590 | K36: 17213.24 | L36: 29376.76 | M36: 0.5859475313
A37: 45755.42042 | B37: 45755.42042 | C37: 6.32 | D37: 31.0251 | E37: 26.1028 | F37: 35.7278 | G37: 5.72 | H37: 25.7 | I37: 240.5 | J37: 46074.83 | K37: 16698.07 | L37: 29376.76 | M37: 0.5684108799
A38: 45754.91063 | B38: 45754.91063 | C38: 6.32 | D38: 31.0326 | E38: 26.1365 | F38: 35.5168 | G38: 5.63 | H38: 25.2 | I38: 238.67 | J38: 45614.67 | K38: 16237.91 | L38: 29376.76 | M38: 0.5527467971
A39: 45754.74066 | B39: 45754.74066 | C39: 6.28 | D39: 31.6056 | E39: 26.6312 | F39: 38.5314 | G39: 5.62 | H39: 24.9 | I39: 239.36 | J39: 46947.74 | K39: 17570.98 | L39: =L38+N39 -> 29386.01 | M39: 0.5979369094 | N39: 9.25
A40: 45749.98369 | B40: 45749.98369 | C40: 7.19 | D40: 35.13 | E40: 27.8471 | F40: 37.6624 | G40: 5.81 | H40: 32.03 | I40: 268.56 | J40: 51632.78 | K40: 22256.02 | L40: =L39+N39 -> 29395.26 | M40: 0.7571295508
A41: 45749.81042 | B41: 45749.81042 | C41: 7.19 | D41: 35.0066 | E41: 27.7493 | F41: 37.5301 | G41: 5.81 | H41: 32.03 | I41: 268.55 | J41: 51538.89 | K41: 22162.13 | L41: =L40+N41 -> 29505.33 | M41: 0.7511229327 | N41: 110.07
A42: 45749.41431 | B42: 45749.41431 | C42: 7.3 | D42: 34.5673 | E42: 28.0871 | F42: 39.5663 | G42: 5.79 | H42: 32.28 | I42: 265.66 | J42: 52723.73 | K42: 23346.97 | L42: 29505.33 | M42: 0.791279745
A43: 45748.64856 | B43: 45748.64856 | C43: 7.28 | D43: 34.2692 | E43: 28.0956 | F43: 39.4078 | G43: 5.95 | H43: 32.14 | I43: 268.76 | J43: 52686.39 | K43: 23309.63 | L43: 29505.33 | M43: 0.790014211
A44: 45747.91346 | B44: 45747.91346 | C44: 7.16 | D44: 34.2721 | E44: 28.1719 | F44: 39.4111 | G44: 5.8 | H44: 32.12 | I44: 268.1 | J44: 52577.71 | K44: 23200.95 | L44: 29505.33 | M44: 0.7863308087
A45: 45747.41788 | B45: 45747.41788 | C45: 7.25 | D45: 34.8359 | E45: 27.9501 | F45: 36.8971 | G45: 5.82 | H45: 31.21 | I45: 268.51 | J45: 50830.03 | K45: 21453.27 | L45: =L44+N45 -> 29938.63 | M45: 0.7165748733 | N45: 433.3
A46: 45745.57612 | B46: 45745.57612 | C46: 7.25 | D46: 34.8359 | E46: 27.9501 | F46: 36.8971 | G46: 5.8 | H46: 31.84 | I46: 270.59 | J46: 51205 | K46: 21828.24 | L46: 29938.63 | M46: 0.7290994945
A47: 45744.7196 | B47: 45744.7196 | C47: 7.27 | D47: 34.1755 | E47: 27.9853 | F47: 38.9521 | G47: 5.86 | H47: 32.33 | I47: 271.18 | J47: 52491.74 | K47: 23114.98 | L47: 29938.63 | M47: 0.7720787491
A48: 45743.7882 | B48: 45743.7882 | C48: 7.33 | D48: 33.4646 | E48: 27.7667 | F48: 36.1699 | G48: 5.87 | H48: 32.6 | I48: 273.85 | J48: 51343.18 | K48: 21966.42 | L48: 29938.63 | M48: 0.7337149362
A49: 45742.71561 | B49: 45742.71561 | C49: 7.61 | D49: 34.5914 | E49: 27.43 | F49: 39.1275 | G49: 6.49 | H49: 33.01 | I49: 274.92 | J49: 53304.16 | K49: 23927.4 | L49: 29938.63 | M49: 0.7992149273
A50: 45742.57945 | B50: 45742.57945 | C50: 7.67 | D50: 34.5772 | E50: 26.983 | F50: 39.8069 | G50: 6.79 | H50: 32.8 | I50: 277.21 | J50: 53554.47 | K50: 24177.71 | L50: 29938.63 | M50: 0.8075756974
A51: 45741.82694 | B51: 45741.82694 | C51: 7.72 | D51: 34.5304 | E51: 27.0113 | F51: 39.753 | G51: 6.45 | H51: 33.03 | I51: 278.59 | J51: 53432.38 | K51: 24055.62 | L51: 29938.63 | M51: 0.8034976884
A52: 45741.46069 | B52: 45741.46069 | C52: 7.7 | D52: 32.8049 | E52: 26.9625 | F52: 39.7493 | G52: 6.44 | H52: 33.79 | I52: 277.49 | J52: 53872.85 | K52: 24496.09 | L52: 29938.63 | M52: 0.8182101185
A53: 45740.95266 | B53: 45740.95266 | C53: 7.66 | D53: 32.8049 | E53: 26.9625 | F53: 39.7493 | G53: 6.44 | H53: 33.79 | I53: 277.56 | J53: 53868.85 | K53: 24492.09 | L53: 29938.63 | M53: 0.8180765119
A54: 45740.5719 | B54: 45740.5719 | C54: 7.6 | D54: 33.4117 | E54: 27.2688 | F54: 37.587 | G54: 6.52 | H54: 33.65 | I54: 277.03 | J54: 52971 | K54: 23594.24 | L54: 29938.63 | M54: 0.7880868296
A55: 45739.83582 | B55: 45739.83582 | C55: 7.6 | D55: 33.2529 | E55: 27.1392 | F55: 37.4084 | G55: 6.63 | H55: 33.35 | I55: 277.56 | J55: 52741.89 | K55: 23365.13 | L55: 29938.63 | M55: 0.7804341748
A56: 45735.81888 | B56: 45735.81888 | C56: 7.54 | D56: 33.6361 | E56: 27.4337 | F56: 39.5816 | G56: 6.74 | H56: 34.52 | I56: 281.8 | J56: 54624.03 | K56: 25247.27 | L56: 29938.63 | M56: 0.843300779
A57: 45735.6201 | B57: 45735.6201 | C57: 7.52 | D57: 34.7301 | E57: 27.6537 | F57: 37.4927 | G57: 6.72 | H57: 34.34 | I57: 279.34 | J57: 53633.72 | K57: 24256.96 | L57: 29938.63 | M57: 0.8102227791
A58: 45734.97291 | B58: 45734.97291 | C58: 7.58 | D58: 34.578 | E58: 27.7702 | F58: 37.3285 | G58: 6.78 | H58: 34.34 | I58: 280.55 | J58: 53651.46 | K58: 24274.7 | L58: 29938.63 | M58: 0.8108153245
A59: 45734.50439 | B59: 45734.50439 | C59: 7.54 | D59: 33.8197 | E59: 28.0398 | F59: 39.2978 | G59: 6.88 | H59: 34.42 | I59: 282.36 | J59: 54751.75 | K59: 25374.99 | L59: 29938.63 | M59: 0.8475668392
A60: 45733.93817 | B60: 45733.93817 | C60: 7.56 | D60: 33.8637 | E60: 28.0763 | F60: 39.3489 | G60: 6.81 | H60: 34.37 | I60: 280.65 | J60: 54706.11 | K60: 25329.35 | L60: 29938.63 | M60: 0.8460423874
A61: 45733.71441 | B61: 45733.71441 | C61: 7.56 | D61: 33.9266 | E61: 27.9913 | F61: 37.7736 | G61: 6.73 | H61: 34.38 | I61: 279.29 | J61: 53913.7 | K61: 24536.94 | L61: 29938.63 | M61: 0.8195745764
A62: 45733.41357 | B62: 45733.41357 | C62: 7.55 | D62: 33.2349 | E62: 27.7769 | F62: 37.3421 | G62: 6.52 | H62: 33.77 | I62: 279.02 | J62: 53107.73 | K62: 23730.97 | L62: 29938.63 | M62: 0.7926538389
A63: 45732.91612 | B63: 45732.91612 | C63: 7.53 | D63: 33.3319 | E63: 27.858 | F63: 37.4512 | G63: 6.27 | H63: 33.82 | I63: 279.71 | J63: 53026.75 | K63: 23649.99 | L63: 29938.63 | M63: 0.7899489723
A64: 45730.45812 | B64: 45730.45812 | C64: 7.37 | D64: 33.3411 | E64: 27.8211 | F64: 37.6447 | G64: 6.27 | H64: 33.66 | I64: 274.3 | J64: 52985.9 | K64: 23609.14 | L64: 29938.63 | M64: 0.7885845144
A65: 45729.82659 | B65: 45729.82659 | C65: 7.35 | D65: 33.991 | E65: 28.0034 | F65: 37.6296 | G65: 6.25 | H65: 33.3 | I65: 272.89 | J65: 52803.7 | K65: 23426.94 | L65: 29938.63 | M65: 0.7824987316
A66: 45729.38853 | B66: 45729.38853 | C66: 7.39 | D66: 33.1258 | E66: 27.8731 | F66: 37.4401 | G66: 6.15 | H66: 33.02 | I66: 272.28 | J66: 52427.66 | K66: 23050.9 | L66: 29938.63 | M66: 0.7699383706
A67: 45728.91997 | B67: 45728.91997 | C67: 7.39 | D67: 33.0725 | E67: 27.8283 | F67: 37.3799 | G67: 6.24 | H67: 33.02 | I67: 275.38 | J67: 52452.32 | K67: 23075.56 | L67: 29938.63 | M67: 0.7707620556
A68: 45728.71815 | B68: 45728.71815 | C68: 7.35 | D68: 33.6351 | E68: 27.6919 | F68: 38.9189 | G68: 6.18 | H68: 33.02 | I68: 275.11 | J68: 53048.69 | K68: 23671.93 | L68: 29938.63 | M68: 0.7906818047
A69: 45727.92548 | B69: 45727.92548 | C69: 7.59 | D69: 33.6429 | E69: 28.4861 | F69: 36.6015 | G69: 6.22 | H69: 33.33 | I69: 275.11 | J69: 52529.71 | K69: 23152.95 | L69: 29938.63 | M69: 0.7733470102
A70: 45727.74226 | B70: 45727.74226 | C70: 7.6 | D70: 33.5997 | E70: 28.7946 | F70: 36.5744 | G70: 6.28 | H70: 33.19 | I70: 272.65 | J70: 52584.78 | K70: 23208.02 | L70: 29938.63 | M70: 0.7751864397
A71: 45727.55803 | B71: 45727.55803 | C71: 7.77 | D71: 35.0602 | E71: 29.5408 | F71: 36.6372 | G71: 6.23 | H71: 34.52 | I71: 275.41 | J71: 53678.45 | K71: 24301.69 | L71: 29938.63 | M71: 0.8117168354
A72: 45726.84151 | B72: 45726.84151 | C72: 7.83 | D72: 35.3397 | E72: 30.1921 | F72: 36.9292 | G72: 6.13 | H72: 34.91 | I72: 272.1 | J72: 54210.52 | K72: 24833.76 | L72: 29938.63 | M72: 0.8294888577
A73: 45726.64826 | B73: 45726.64826 | C73: 7.92 | D73: 34.4594 | E73: 30.4645 | F73: 38.3066 | G73: 6.21 | H73: 35 | I73: 275.79 | J73: 55049.52 | K73: 25672.76 | L73: 29938.63 | M73: 0.8575128521
A74: 45725.79963 | B74: 45725.79963 | C74: 7.93 | D74: 34.4764 | E74: 29.7042 | F74: 38.3256 | G74: 6.23 | H74: 34.18 | I74: 283.91 | J74: 54300.36 | K74: 24923.6 | L74: 29938.63 | M74: 0.832489663
A75: 45723.71913 | B75: 45723.71913 | C75: 7.94 | D75: 32.9482 | E75: 29.4489 | F75: 36.8342 | G75: 6.26 | H75: 34.02 | I75: 283.11 | J75: 53462.85 | K75: 24086.09 | L75: 29938.63 | M75: 0.8045154371
A76: 45723.51591 | B76: 45723.51591 | C76: 7.82 | D76: 33.0864 | E76: 28.9252 | F76: 36.9887 | G76: 6.15 | H76: 34.47 | I76: 279.28 | J76: 53533.27 | K76: 24156.51 | L76: 29938.63 | M76: 0.8068675821
A77: 45722.63253 | B77: 45722.63253 | C77: 7.91 | D77: 33.1882 | E77: 28.657 | F77: 35.6849 | G77: 5.8 | H77: 34.62 | I77: 277.81 | J77: 52692.13 | K77: 23315.37 | L77: 29938.63 | M77: 0.7787721081
A78: 45722.47051 | B78: 45722.47051 | C78: 7.88 | D78: 33.2546 | E78: 28.7144 | F78: 35.7563 | G78: 5.62 | H78: 34.96 | I78: 278.02 | J78: 52816.87 | K78: 23440.11 | L78: 29938.63 | M78: 0.7829386315
A79: 45721.91575 | B79: 45721.91575 | C79: 7.88 | D79: 33.252 | E79: 28.6936 | F79: 35.7535 | G79: 6.02 | H79: 34.24 | I79: 279.73 | J79: 52662.64 | K79: 23285.88 | L79: 29938.63 | M79: 0.7777870931
A80: 45721.58734 | B80: 45721.58734 | C80: 7.88 | D80: 34.55 | E80: 28.9835 | F80: 37.1883 | G80: 6.09 | H80: 33.88 | I80: 280.04 | J80: 53240.73 | K80: 23863.97 | L80: 29938.63 | M80: 0.7970962599
A81: 45721.41759 | B81: 45721.41759 | C81: 7.79 | D81: 34.5205 | E81: 28.9587 | F81: 37.1565 | G81: 6.09 | H81: 33.91 | I81: 277.52 | J81: 53227.26 | K81: 23850.5 | L81: 29938.63 | M81: 0.7966463395
A82: 45720.56051 | B82: 45720.56051 | C82: 7.81 | D82: 35.0122 | E82: 29.6936 | F82: 37.4962 | G82: 5.84 | H82: 34.3 | I82: 274.27 | J82: 53693.73 | K82: 24316.97 | L82: 29938.63 | M82: 0.8122272128
A83: 45719.92604 | B83: 45719.92604 | C83: 8.04 | D83: 35.2225 | E83: 29.8719 | F83: 37.5211 | G83: 5.99 | H83: 35.51 | I83: 274.32 | J83: 54652.09 | K83: 25275.33 | L83: 29938.63 | M83: 0.8442380296
A84: 45719.73761 | B84: 45719.73761 | C84: 8.08 | D84: 33.6533 | E84: 29.7087 | F84: 38.5889 | G84: 6.01 | H84: 35.72 | I84: 280.39 | J84: 55222.87 | K84: 25846.11 | L84: 29938.63 | M84: 0.8633030302
A85: 45710.82783 | B85: 45710.82783 | C85: 7.67 | D85: 33.886 | E85: 29.7482 | F85: 35.5774 | G85: 5.98 | H85: 37.81 | I85: 269.74 | J85: 55111.99 | K85: 25735.23 | L85: 29938.63 | M85: 0.8595994539
A86: 45709.72894 | B86: 45709.72894 | C86: 7.65 | D86: 33.9796 | E86: 29.3864 | F86: 35.6254 | G86: 5.98 | H86: 38.2 | I86: 270.84 | J86: 55246.48 | K86: 25869.72 | L86: 29938.63 | M86: 0.8640916435
A87: 45709.38568 | B87: 45709.38568 | C87: 7.66 | D87: 33.8446 | E87: 28.7455 | F87: 35.36 | G87: 5.38 | H87: 37.47 | I87: 271.57 | J87: 54001.7 | K87: 24624.94 | L87: 29938.63 | M87: 0.8225139226
A88: 45708.95954 | B88: 45708.95954 | C88: 7.66 | D88: 33.8142 | E88: 28.7197 | F88: 35.3283 | G88: 5.38 | H88: 37.47 | I88: 271.11 | J88: 53978.37 | K88: 24601.61 | L88: 29938.63 | M88: 0.8217346619
A89: 45708.73825 | B89: 45708.73825 | C89: 7.62 | D89: 34.3987 | E89: 28.6258 | F89: 35.7441 | G89: 5.38 | H89: 37.57 | I89: 270.9 | J89: 54191.11 | K89: 24814.35 | L89: 29938.63 | M89: 0.8288405314
A90: 45707.6117 | B90: 45707.6117 | C90: 7.56 | D90: 34.3414 | E90: 27.977 | F90: 36.8891 | G90: 5.52 | H90: 38.2 | I90: 273.05 | J90: 54968.19 | K90: 25591.43 | L90: 29938.63 | M90: 0.854796295
A91: 45706.44159 | B91: 45706.44159 | C91: 7.59 | D91: 33.2632 | E91: 27.5953 | F91: 36.975 | G91: 5.52 | H91: 37.06 | I91: 275.14 | J91: 54169.51 | K91: 24792.75 | L91: 29938.63 | M91: 0.8281190555
A92: 45705.96978 | B92: 45705.96978 | C92: 7.59 | D92: 33.2632 | E92: 27.5953 | F92: 36.975 | G92: 5.57 | H92: 37.06 | I92: 277.02 | J92: 54207.01 | K92: 24830.25 | L92: 29938.63 | M92: 0.8293716179
A93: 45705.44449 | B93: 45705.44449 | C93: 7.55 | D93: 33.3235 | E93: 27.6453 | F93: 37.042 | G93: 5.64 | H93: 36.91 | I93: 275.26 | J93: 54210.36 | K93: 24833.6 | L93: 29938.63 | M93: 0.8294835134
A94: 45703.58486 | B94: 45703.58486 | C94: 7.57 | D94: 33.3235 | E94: 27.6453 | F94: 37.042 | G94: 5.65 | H94: 37.08 | I94: 273.67 | J94: 54325.09 | K94: 24948.33 | L94: 29938.63 | M94: 0.8333156861
A95: 45701.91906 | B95: 45701.91906 | C95: 7.57 | D95: 33.2661 | E95: 27.9607 | F95: 38.5524 | G95: 5.63 | H95: 36.79 | I95: 271.29 | J95: 54920.59 | K95: 25543.83 | L95: 29938.63 | M95: 0.8532063758
A96: 45701.7649 | B96: 45701.7649 | C96: 7.57 | D96: 33.5025 | E96: 27.7358 | F96: 38.9033 | G96: 5.63 | H96: 36.79 | I96: 273.04 | J96: 55000.01 | K96: 25623.25 | L96: 29938.63 | M96: 0.8558591358
A97: 45700.83608 | B97: 45700.83608 | C97: 7.51 | D97: 34.0701 | E97: 27.5063 | F97: 40.1719 | G97: 5.56 | H97: 36.75 | I97: 269.61 | J97: 55407.87 | K97: 26031.11 | L97: 29938.63 | M97: 0.8694823377
A98: 45700.6281 | B98: 45700.6281 | C98: 7.53 | D98: 33.7229 | E98: 28.6315 | F98: 42.1729 | G98: 5.6 | H98: 37.4 | I98: 266.96 | J98: 57136.17 | K98: 27759.41 | L98: 29938.63 | M98: 0.9272104301
A99: 45699.76548 | B99: 45699.76548 | C99: 7.5 | D99: 34.3059 | E99: 28.4191 | F99: 42.126 | G99: 5.56 | H99: 37.4 | I99: 267.43 | J99: 57008.26 | K99: 27631.5 | L99: 29938.63 | M99: 0.9229380236
A100: 45699.71678 | B100: 45699.71678 | C100: 7.54 | D100: 34.2972 | E100: 28.1896 | F100: 40.2308 | G100: 5.54 | H100: 37.39 | I100: 267.52 | J100: 56057.93 | K100: 26681.17 | L100: 29938.63 | M100: 0.8911954221
A101: 45698.93558 | B101: 45698.93558 | C101: 7.44 | D101: 34.4112 | E101: 28.0797 | F101: 40.3646 | G101: 5.56 | H101: 37.3 | I101: 267.28 | J101: 56029.06 | K101: 26652.3 | L101: 29938.63 | M101: 0.8902311161
A102: 45698.75402 | B102: 45698.75402 | C102: 7.44 | D102: 32.9277 | E102: 28.0894 | F102: 42.1777 | G102: 5.56 | H102: 37.3 | I102: 266.75 | J102: 56846.89 | K102: 27470.13 | L102: 29938.63 | M102: 0.9175479974
A103: 45698.6542 | B103: 45698.6542 | C103: 7.46 | D103: 32.9451 | E103: 27.8617 | F103: 39.8912 | G103: 5.57 | H103: 37.72 | I103: 265.59 | J103: 56007.75 | K103: 26630.99 | L103: 29938.63 | M103: 0.8895193267
A104: 45698.56872 | B104: 45698.56872 | C104: 7.45 | D104: 32.9181 | E104: 28.4011 | F104: 39.8585 | G104: 5.58 | H104: 37.78 | I104: 266.01 | J104: 56225.44 | K104: 26848.68 | L104: 29938.63 | M104: 0.8967905345
A105: 45696.51216 | B105: 45696.51216 | C105: 7.37 | D105: 32.8468 | E105: 28.3395 | F105: 39.7721 | G105: 5.47 | H105: 37.11 | I105: 265.03 | J105: 55659.72 | K105: 26282.96 | L105: 29938.63 | M105: 0.8778945463
A106: 45695.71509 | B106: 45695.71509 | C106: 7.33 | D106: 33.166 | E106: 28.0881 | F106: 41.2713 | G106: 5.49 | H106: 37.32 | I106: 265.04 | J106: 56387.64 | K106: 27010.88 | L106: 29938.63 | M106: 0.9022082841
A107: 45695.51695 | B107: 45695.51695 | C107: 7.36 | D107: 32.7363 | E107: 27.9894 | F107: 41.1688 | G107: 5.51 | H107: 37.32 | I107: 266.02 | J107: 56324.55 | K107: 26947.79 | L107: 29938.63 | M107: 0.9001009732
A108: 45694.68939 | B108: 45694.68939 | C108: 7.37 | D108: 33.0354 | E108: 27.8639 | F108: 41.1591 | G108: 5.56 | H108: 37.03 | I108: 265.6 | J108: 56135.59 | K108: 26758.83 | L108: 29938.63 | M108: 0.8937893952
A109: 45694.49141 | B109: 45694.49141 | C109: 7.37 | D109: 32.7081 | E109: 27.5715 | F109: 39.1938 | G109: 5.6 | H109: 37.03 | I109: 264.41 | J109: 55178.5 | K109: 25801.74 | L109: 29938.63 | M109: 0.8618209985
A110: 45693.99951 | B110: 45693.99951 | C110: 7.32 | D110: 32.7081 | E110: 27.5715 | F110: 39.1938 | G110: 5.61 | H110: 36.6 | I110: 261.93 | J110: 54914.83 | K110: 25538.07 | L110: 29938.63 | M110: 0.8530139823
A111: 45693.80656 | B111: 45693.80656 | C111: 7.32 | D111: 32.5153 | E111: 27.4944 | F111: 38.7794 | G111: 5.61 | H111: 36.6 | I111: 261.93 | J111: 54701.18 | K111: 25324.42 | L111: =L110+N111 -> 30256.08 | M111: 0.8370026785 | N111: 317.45
A112: 45693.62608 | B112: 45693.62608 | C112: 7.27 | D112: 32.5153 | E112: 27.6583 | F112: 40.4659 | G112: 5.57 | H112: 37.26 | I112: 261.38 | J112: 55890.98 | K112: 26514.22 | L112: 30256.08 | M112: 0.876327006
A113: 45692.78827 | B113: 45692.78827 | C113: 7.3 | D113: 32.523 | E113: 27.6552 | F113: 40.4754 | G113: 5.62 | H113: 36.98 | I113: 260.94 | J113: 55761.39 | K113: 26384.63 | L113: 30256.08 | M113: 0.8720438999
A114: 45692.53247 | B114: 45692.53247 | C114: 7.24 | D114: 32.0957 | E114: 28.4432 | F114: 38.0311 | G114: 5.58 | H114: 36.25 | I114: 261.11 | J114: 54448.95 | K114: 25072.19 | L114: 30256.08 | M114: 0.8286661722
A115: 45691.80619 | B115: 45691.80619 | C115: 7.3 | D115: 33.0482 | E115: 28.6158 | F115: 39.9703 | G115: 5.61 | H115: 36.96 | I115: 260.44 | J115: 55850.96 | K115: 26474.2 | L115: 30256.08 | M115: 0.8750042967
A116: 45691.38659 | B116: 45691.38659 | C116: 7.32 | D116: 32.7592 | E116: 29.1889 | F116: 38.4523 | G116: 5.57 | H116: 37.4 | I116: 258.38 | J116: 55612.49 | K116: 26235.73 | L116: 30256.08 | M116: 0.867122575
A117: 45687.80933 | B117: 45687.80933 | C117: 7.43 | D117: 32.1443 | E117: 28.9491 | F117: 37.7768 | G117: 5.57 | H117: 36.87 | I117: 264.1 | J117: 54906.89 | K117: 25530.13 | L117: 30256.08 | M117: 0.8438016425
A118: 45687.75777 | B118: 45687.75777 | C118: 7.42 | D118: 32.1554 | E118: 28.6423 | F118: 37.7898 | G118: 5.57 | H118: 36.32 | I118: 263.99 | J118: 54463.97 | K118: 25087.21 | L118: 30256.08 | M118: 0.8291626014
A119: 45686.82958 | B119: 45686.82958 | C119: 7.36 | D119: 31.9731 | E119: 28.6136 | F119: 37.4635 | G119: 5.46 | H119: 39.74 | I119: 262.36 | J119: 56335.37 | K119: 26958.61 | L119: 30256.08 | M119: 0.8910146324
A120: 45686.71765 | B120: 45686.71765 | C120: 7.4 | D120: 30.6081 | E120: 28.5727 | F120: 37.4728 | G120: 5.48 | H120: 39.6 | I120: 262.19 | J120: 56256.21 | K120: 26879.45 | L120: 30256.08 | M120: 0.8883982988
A121: 45685.76314 | B121: 45685.76314 | C121: 7.42 | D121: 30.1543 | E121: 28.4183 | F121: 37.6545 | G121: 5.55 | H121: 39.7 | I121: 260.61 | J121: 56399.86 | K121: 27023.1 | L121: 30256.08 | M121: 0.8931461048
A122: 45685.72208 | B122: 45685.72208 | C122: 7.42 | D122: 29.9773 | E122: 28.4231 | F122: 37.4334 | G122: 5.64 | H122: 40.03 | I122: 260.52 | J122: 56573.68 | K122: 27196.92 | L122: 30256.08 | M122: 0.8988910659
A123: 45684.91566 | B123: 45684.91566 | C123: 7.5 | D123: 29.0905 | E123: 28.8045 | F123: 36.6993 | G123: 5.52 | H123: 39.59 | I123: 260.69 | J123: 56021.54 | K123: 26644.78 | L123: 30256.08 | M123: 0.8806421718
A124: 45684.77203 | B124: 45684.77203 | C124: 7.5 | D124: 29.0838 | E124: 28.7216 | F124: 37.196 | G124: 5.52 | H124: 39.59 | I124: 259.93 | J124: 56216.05 | K124: 26839.29 | L124: 30256.08 | M124: 0.8870709623
A125: 45681.66496 | B125: 45681.66496 | C125: 7.58 | D125: 29.5318 | E125: 27.7302 | F125: 35.4134 | G125: 5.37 | H125: 39.82 | I125: 259.6 | J125: 55105.22 | K125: 25728.46 | L125: 30256.08 | M125: 0.8503566886
A126: 45681.60245 | B126: 45681.60245 | C126: 7.62 | D126: 29.7421 | E126: 27.9085 | F126: 35.1184 | G126: 5.42 | H126: 39.82 | I126: 260.27 | J126: 55076.55 | K126: 25699.79 | L126: 30256.08 | M126: 0.8494091105
A127: 45680.93556 | B127: 45680.93556 | C127: 8.49 | D127: 29.7421 | E127: 27.9085 | F127: 35.1184 | G127: 5.32 | H127: 39.67 | I127: 260.35 | J127: 54995.7 | K127: 25618.94 | L127: 30256.08 | M127: 0.8467369203
A128: 45680.75476 | B128: 45680.75476 | C128: 8.49 | D128: 29.7276 | E128: 27.8565 | F128: 35.5618 | G128: 5.32 | H128: 39.67 | I128: 259.72 | J128: 55177.05 | K128: 25800.29 | L128: 30256.08 | M128: 0.8527307569
A129: 45679.91118 | B129: 45679.91118 | C129: 8.42 | D129: 29.9206 | E129: 27.9041 | F129: 35.3939 | G129: 5.03 | H129: 39.64 | I129: 258.59 | J129: 54875.28 | K129: 25498.52 | L129: 30256.08 | M129: 0.8427568938
A130: 45679.73444 | B130: 45679.73444 | C130: 8.41 | D130: 29.8874 | E130: 28.0075 | F130: 34.5681 | G130: 5.04 | H130: 39.62 | I130: 258.52 | J130: 54533.94 | K130: 25157.18 | L130: 30256.08 | M130: 0.8314751944
A131: 45678.9474 | B131: 45678.9474 | C131: 8.38 | D131: 29.8874 | E131: 28.276 | F131: 35.2491 | G131: 5.13 | H131: 40.08 | I131: 258.05 | J131: 55283.63 | K131: 25906.87 | L131: 30256.08 | M131: 0.8562533547
A132: 45678.76778 | B132: 45678.76778 | C132: 8.38 | D132: 30.2392 | E132: 28.4242 | F132: 35.2902 | G132: 5.13 | H132: 40.08 | I132: 256.89 | J132: 55354.34 | K132: 25977.58 | L132: 30256.08 | M132: 0.8585904056
A133: 45677.91112 | B133: 45677.91112 | C133: 8.29 | D133: 29.9511 | E133: 28.1073 | F133: 35.1846 | G133: 5.05 | H133: 39.35 | I133: 256.29 | J133: 54674.74 | K133: 25297.98 | L133: 30256.08 | M133: 0.8361288045
A134: 45677.73373 | B134: 45677.73373 | C134: 8.3 | D134: 30.2178 | E134: 28.3577 | F134: 35.4979 | G134: 5.08 | H134: 40.43 | I134: 256.2 | J134: 55595.64 | K134: 26218.88 | L134: 30256.08 | M134: 0.8665656622
A135: 45675.45894 | B135: 45675.45894 | C135: 8.31 | D135: 30.2178 | E135: 28.3577 | F135: 35.4979 | G135: 5.03 | H135: 40.01 | I135: 254.81 | J135: 55299.16 | K135: 25922.4 | L135: 30256.08 | M135: 0.85676664
A136: 45674.67878 | B136: 45674.67878 | C136: 8.3 | D136: 30.1791 | E136: 28.3383 | F136: 34.035 | G136: 5.07 | H136: 40 | I136: 254.34 | J136: 54656.83 | K136: 25280.07 | L136: 30256.08 | M136: 0.8355368574
A137: 45674.51378 | B137: 45674.51378 | C137: 8.26 | D137: 29.8377 | E137: 28.1197 | F137: 34.0989 | G137: 5.1 | H137: 39.82 | I137: 253.69 | J137: 54515.78 | K137: 25139.02 | L137: 30256.08 | M137: 0.8308749845
A138: 45673.94599 | B138: 45673.94599 | C138: 8.25 | D138: 29.8377 | E138: 28.1197 | F138: 34.0989 | G138: 4.98 | H138: 39.26 | I138: 252.09 | J138: 54078.14 | K138: 24701.38 | L138: 30256.08 | M138: 0.8164104537
A139: 45673.72786 | B139: 45673.72786 | C139: 8.22 | D139: 29.6118 | E139: 27.8528 | F139: 34.1406 | G139: 4.94 | H139: 39.31 | I139: 251.6 | J139: 54001.23 | K139: 24624.47 | L139: 30256.08 | M139: 0.8138684853
A140: 45672.95165 | B140: 45672.95165 | C140: 8.29 | D140: 29.6118 | E140: 27.9208 | F140: 33.8976 | G140: 4.94 | H140: 39.13 | I140: 252.11 | J140: 53811.29 | K140: 24434.53 | L140: 30256.08 | M140: 0.8075907388
A141: 45672.72568 | B141: 45672.72568 | C141: 8.24 | D141: 29.5722 | E141: 27.7088 | F141: 35.5604 | G141: 4.96 | H141: 39.11 | I141: 252.22 | J141: 54482.91 | K141: 25106.15 | L141: 30256.08 | M141: 0.8297885913
A142: 45671.91454 | B142: 45671.91454 | C142: 7.96 | D142: 29.5722 | E142: 27.8252 | F142: 35.5604 | G142: 4.78 | H142: 38.72 | I142: 247.67 | J142: 54119.27 | K142: 24742.51 | L142: 30256.08 | M142: 0.8177698499
A143: 45671.73732 | B143: 45671.73732 | C143: 7.93 | D143: 30.0505 | E143: 28.0634 | F143: 34.3672 | G143: 4.83 | H143: 38.63 | I143: 247.56 | J143: 53644.93 | K143: 24268.17 | L143: 30256.08 | M143: 0.8020923398
A144: 45670.91635 | B144: 45670.91635 | C144: 7.8 | D144: 29.7764 | E144: 28.2298 | F144: 36.4717 | G144: 4.88 | H144: 38.35 | I144: 247.32 | J144: 54501.11 | K144: 25124.35 | L144: 30256.08 | M144: 0.8303901232
A145: 45670.82856 | B145: 45670.82856 | C145: 7.8 | D145: 29.162 | E145: 28.3693 | F145: 36.4623 | G145: 4.88 | H145: 38.35 | I145: 247 | J145: 54545.09 | K145: 25168.33 | L145: 30256.08 | M145: 0.8318437154
A146: 45668.63089 | B146: 45668.63089 | C146: 8.05 | D146: 28.7874 | E146: 27.8024 | F146: 36.9594 | G146: 4.85 | H146: 37.71 | I146: 248.25 | J146: 54176.35 | K146: 24799.59 | L146: 30256.08 | M146: 0.8196564129
A147: 45668.49709 | B147: 45668.49709 | C147: 8.05 | D147: 28.6565 | E147: 27.6761 | F147: 36.7914 | G147: 4.85 | H147: 37.71 | I147: 248.25 | J147: 54056.42 | K147: 24679.66 | L147: 30256.08 | M147: 0.8156925815
A148: 45667.73029 | B148: 45667.73029 | C148: 8.09 | D148: 29.5496 | E148: 27.812 | F148: 36.7914 | G148: 4.85 | H148: 37.55 | I148: 247.55 | J148: 54009.84 | K148: 24633.08 | L148: 30256.08 | M148: 0.8141530562
A149: 45667.57755 | B149: 45667.57755 | C149: 8.1 | D149: 29.0545 | E149: 28.7924 | F149: 35.2188 | G149: 4.89 | H149: 37.4 | I149: 249.71 | J149: 53582.97 | K149: 24206.21 | L149: 30256.08 | M149: 0.8000444869
A150: 45666.96022 | B150: 45666.96022 | C150: 8.17 | D150: 29.0545 | E150: 28.7924 | F150: 35.2188 | G150: 4.95 | H150: 37.4 | I150: 249.48 | J150: 53634.97 | K150: 24258.21 | L150: 30256.08 | M150: 0.8017631498
A151: 45666.79011 | B151: 45666.79011 | C151: 8.17 | D151: 29.0103 | E151: 28.7485 | F151: 35.1651 | G151: 4.95 | H151: 37.4 | I151: 249.32 | J151: 53595.4 | K151: 24218.64 | L151: 30256.08 | M151: 0.8004553134
A152: 45665.92057 | B152: 45665.92057 | C152: 8 | D152: 29.0103 | E152: 28.7485 | F152: 35.1651 | G152: 4.96 | H152: 37.66 | I152: 249.61 | J152: 53746.84 | K152: 24370.08 | L152: 30256.08 | M152: 0.8054605884
A153: 45665.77195 | B153: 45665.77195 | C153: 8 | D153: 28.3833 | E153: 28.596 | F153: 35.085 | G153: 4.96 | H153: 37.66 | I153: 249.08 | J153: 53656.78 | K153: 24280.02 | L153: 30256.08 | M153: 0.8024839966
A154: 45664.9583 | B154: 45664.9583 | C154: 7.96 | D154: 28.3833 | E154: 28.7894 | F154: 35.085 | G154: 5.14 | H154: 38.29 | I154: 249.75 | J154: 54245.45 | K154: 24868.69 | L154: 30256.08 | M154: 0.8219402513
A155: 45664.725 | B155: 45664.725 | C155: 7.96 | D155: 28.2391 | E155: 28.8837 | F155: 34.9068 | G155: 5.16 | H155: 38.21 | I155: 250.33 | J155: 54163.57 | K155: 24786.81 | L155: 30256.08 | M155: 0.8192340184
A156: 45663.92473 | B156: 45663.92473 | C156: 7.84 | D156: 28.2391 | E156: 28.9126 | F156: 35.7823 | G156: 5.13 | H156: 38.49 | I156: 247.42 | J156: 54706.5 | K156: 25329.74 | L156: 30256.08 | M156: 0.8371785109
A157: 45663.6399 | B157: 45663.6399 | C157: 7.89 | D157: 28.8748 | E157: 29.5506 | F157: 36.0573 | G157: 5.17 | H157: 38.18 | I157: 246.05 | J157: 54897.31 | K157: 25520.55 | L157: 30256.08 | M157: 0.8434850119
A158: 45663.447 | B158: 45663.447 | C158: 7.9 | D158: 29.0036 | E158: 29.6824 | F158: 36.2182 | G158: 5.19 | H158: 38.27 | I158: 246.44 | J158: 55087.66 | K158: 25710.9 | L158: =L157+N158 -> 30361.97 | M158: 0.8468126409 | N158: 105.89
A159: 45661.0085 | B159: 45661.0085 | C159: 7.91 | D159: 29.0036 | E159: 29.6824 | F159: 36.2182 | G159: 5.15 | H159: 38.21 | I159: 245.64 | J159: 55021.52 | K159: 25644.76 | L159: 30361.97 | M159: 0.8446342579
A160: 45660.71447 | B160: 45660.71447 | C160: 7.94 | D160: 28.4268 | E160: 29.855 | F160: 37.19 | G160: 5.21 | H160: 38.82 | I160: 245.07 | J160: 55944.22 | K160: 26567.46 | L160: 30361.97 | M160: 0.8750242491
A161: 45660.60105 | B161: 45660.60105 | C161: 7.94 | D161: 28.4308 | E161: 29.898 | F161: 36.8065 | G161: 5.28 | H161: 38.77 | I161: 245.59 | J161: 55808.27 | K161: 26431.51 | L161: 30361.97 | M161: 0.8705466081
A162: 45660.52375 | B162: 45660.52375 | C162: 7.94 | D162: 28.1262 | E162: 29.5777 | F162: 36.4122 | G162: 5.29 | H162: 38.77 | I162: 245.82 | J162: 55525.91 | K162: 26149.15 | L162: 30361.97 | M162: 0.8612468163 | N162: 0
A163: 45659.81011 | B163: 45659.81011 | C163: 7.94 | D163: 28.3665 | E163: 29.5392 | F163: 36.4122 | G163: 5.19 | H163: 38.89 | I163: 245.51 | J163: 55511.97 | K163: 26135.21 | L163: 30361.97 | M163: 0.8607876893
A164: 45659.61074 | B164: 45659.61074 | C164: 7.88 | D164: 28.3665 | E164: 29.52 | F164: 33.8745 | G164: 5.21 | H164: 39.25 | I164: 245.95 | J164: 54595.11 | K164: 25218.35 | L164: 30361.97 | M164: 0.8305900441

Sheet FEFonds
A1: Column1 | B1: Column2
A2: WKN: | B2: 847805
A3: ISIN: | B3: DE0008478058
A4: Region: | B4: Welt
A5: Typ: | B5: Aktienfonds
A6: Column1 | B6: Column2 | C6: Column3
A7: aktueller Kurs: | B7: 243,46 EUR | C7: =MID(Table_2[[#This Row],[Column2]],1,6) -> 243,46
A8: Veränderung: | B8: -17,07 EUR | C8: =MID(Table_2[[#This Row],[Column2]],1,6) -> -17,07
A9: Veränderung in %: | B9: -6,55 % | C9: =MID(Table_2[[#This Row],[Column2]],1,6) -> -6,55

Sheet Kurse
A1: Firma | B1: Aktie | C1: Kurs | D1: WÃ¤hrung | E1: Handelsvolumen | F1: Gewinn/Aktie
A2: 1&1 AG | B2: 1U1 | C2: 14.14 | D2: EUR | E2: 97640 | F2: 1,2
A3: 2G Energy AG | B3: 2GB | C3: 24.75 | D3: EUR | E3: 48442 | F3: 1
A4: 7C Solarparken AG | B4: HRPK | C4: 1.96 | D4: EUR | E4: 38975 | F4: 0,03
A5: A2A SpA | B5: A2A | C5: 1.97 | D5: EUR | E5: 21006126 | F5: 0,3
A6: Aalberts NV | B6: AALB | C6: 27.5 | D6: EUR | E6: 415749 | F6: 1,62
A7: ABM Industries Inc | B7: ABM | C7: 44.37 | D7: USD | E7: 1790996 | F7: 1,27
A8: ABN Amro Bank NV | B8: ABN | C8: 17.31 | D8: EUR | E8: 4629138 | F8: 2,72
A9: ABO Energy GmbH & Co KgaA | B9: AB9 | C9: 36.3 | D9: EUR | E9: 1490 | F9: 3,22
A10: Acciona SA | B10: ANA | C10: 111.4 | D10: EUR | E10: 126309 | F10: 7,75
A11: Ackermans & van Haaren NV | B11: ACKB | C11: 189.5 | D11: EUR | E11: 45816 | F11: 14,05
A12: Acomo NV | B12: ACOMO | C12: 20.2 | D12: EUR | E12: 38740 | F12: 1,53
A13: Addnode Group AB (publ) | B13: AR7 | C13: 7.67 | D13: EUR | E13: 0 | F13: #N/A
A14: Addtech AB | B14: AZZ2 | C14: 25.98 | D14: EUR | E14: 0 | F14: #N/A
A15: ADDvise Group AB (publ) Class B | B15: Q3I | C15: 0.08 | D15: EUR | E15: 0 | F15: #N/A
A16: adesso SE | B16: ADN1 | C16: 90.7 | D16: EUR | E16: 7599 | F16: 1,25
A17: Adler Group SA | B17: ADJ | C17: 0.22 | D17: EUR | E17: 37331 | F17: 6,41
A18: Advance Terrafund ADSITS | B18: 11b | C18: 0 | D18: EUR | E18: 0 | F18: #N/A
A19: Adyen NV | B19: ADYEN | C19: 1353.2 | D19: EUR | E19: 157261 | F19: 29,59
A20: Aedifica NV | B20: AED | C20: 60.9 | D20: EUR | E20: 82335 | F20: 4,31
A21: Aena SME SA | B21: AENA | C21: 207 | D21: EUR | E21: 231821 | F21: 12,89
A22: Agfa Gevaert NV | B22: AGFB | C22: 0.86 | D22: EUR | E22: 130469 | F22: -0,58
A23: AIB Group plc | B23: A5G | C23: 5.34 | D23: EUR | E23: 0 | F23: 0,92
A24: Air China Ord Shs H | B24: AIRC | C24: 0 | D24: GBX | E24: 0 | F24: #N/A
A25: Airbnb Inc | B25: ABNB | C25: 113.91 | D25: USD | E25: 6918048 | F25: 4,11
A26: AIXTRON SE | B26: AIXA | C26: 9.58 | D26: EUR | E26: 1002791 | F26: 0,94
A27: Akzo Nobel NV | B27: AKZA | C27: 51.08 | D27: EUR | E27: 599419 | F27: 3,16
A28: Alfa Financial Software Holdings PLC | B28: ALFA | C28: 208.5 | D28: GBX | E28: 805223 | F28: 0,09
A29: Alfen NV | B29: ALFEN | C29: 11.84 | D29: EUR | E29: 342646 | F29: -1,24
A30: Alibaba Group Holding Ltd - ADR | B30: BABA | C30: 104.18 | D30: USD | E30: 50952409 | F30: 6,77
A31: Allfunds Group PLC | B31: ALLFG | C31: 4.69 | D31: EUR | E31: 1063872 | F31: -0,28
A32: Allgeier SE | B32: AEIN | C32: 19 | D32: EUR | E32: 3946 | F32: 1,38
A33: Alstom SA | B33: ALO | C33: 18.21 | D33: EUR | E33: 2174648 | F33: -0,64
A34: alstria office REIT AG | B34: AOX | C34: 5.48 | D34: EUR | E34: 49622 | F34: -0,59
A35: Amadeus FiRe AG | B35: AAD | C35: 70.5 | D35: EUR | E35: 9591 | F35: 6,01
A36: Amazon.com Inc | B36: AMZN | C36: 181.22 | D36: USD | E36: 67463787 | F36: 5,53
A37: AMC Entertainment Holdings Inc | B37: AMC | C37: 2.92 | D37: USD | E37: 8103607 | F37: -1,06
A38: Ametek Inc | B38: AME | C38: 157.42 | D38: USD | E38: 1688338 | F38: 5,93
A39: Amundi CAC 40 Daily (2x) Leveraged UCITS ETF Acc | B39: LVC | C39: 32.44 | D39: EUR | E39: 788063 | F39: #N/A
A40: Amundi SA | B40: AMUN | C40: 61.3 | D40: EUR | E40: 307743 | F40: 6,37
A41: Anima Holding SpA | B41: ANIM | C41: 6.42 | D41: EUR | E41: 1633219 | F41: 0,74
A42: AP Moeller - Maersk A/S Class B | B42: DP4B | C42: 1349.5 | D42: EUR | E42: 395 | F42: #N/A
A43: Apple Inc | B43: AAPL | C43: 190.42 | D43: USD | E43: 117116223 | F43: 6,29
A44: ARCADIS NV | B44: ARCAD | C44: 44.5 | D44: EUR | E44: 186904 | F44: 2,7
A45: #N/A | B45: AZPN | D45: #N/A | F45: #N/A
A46: ASR Nederland NV | B46: ASRNL | C46: 50.38 | D46: EUR | E46: 865109 | F46: 4,32
A47: ASSA ABLOY AB | B47: ALZC | C47: 25.3 | D47: EUR | E47: 200 | F47: #N/A
A48: AT&T Inc | B48: T | C48: 26.39 | D48: USD | E48: 51363862 | F48: 1,49
A49: ATS Corp | B49: ATS | C49: 23.53 | D49: USD | E49: 194314 | F49: #N/A
A50: #N/A | B50: 3IT | D50: #N/A | F50: #N/A
A51: AUTO1 GROUP SE | B51: AG1 | C51: 17.73 | D51: EUR | E51: 679456 | F51: 0,1
A52: Azelis Group NV | B52: AZE | C52: 15.33 | D52: EUR | E52: 215544 | F52: 0,74
A53: Bahnhof AB (publ) | B53: 3B7 | C53: 4.43 | D53: EUR | E53: 0 | F53: #N/A
A54: BancFirst Corp | B54: BANF | C54: 103.19 | D54: USD | E54: 112749 | F54: 6,44
A55: Banco Bilbao Vizcaya Argentaria SA | B55: BBVA | C55: 12.54 | D55: USD | E55: 3998722 | F55: 1,83
A56: Banco BPM SpA | B56: BAMI | C56: 8.69 | D56: EUR | E56: 17738070 | F56: 1,28
A57: Banco Santander SA | B57: BSD2 | C57: 5.66 | D57: EUR | E57: 213877 | F57: 0,81
A58: Banco Santander SA | B58: SAN | C58: 6.23 | D58: USD | E58: 11454136 | F58: 0,88
A59: Bank of America Corp | B59: BAC | C59: 35.85 | D59: USD | E59: 88615897 | F59: 3,21
A60: Bank of Hawaii Corp | B60: BOH | C60: 60.42 | D60: USD | E60: 875945 | F60: 3,46
A61: Bank of Ireland Group plc | B61: BIRG | C61: 9.92 | D61: EUR | E61: 119446 | F61: #N/A
A62: Bank of Montreal | B62: BMO | C62: 88.98 | D62: USD | E62: 923616 | F62: 7,54
A63: Bank of New York Mellon Corp | B63: BK | C63: 76.61 | D63: USD | E63: 5382413 | F63: 5,8
A64: Bank of Nova Scotia | B64: BNS | C64: 45.48 | D64: USD | E64: 2531112 | F64: 3,58
A65: Bank Ozk | B65: OZK | C65: 37.63 | D65: USD | E65: 1990467 | F65: 6,14
A66: Barclays PLC | B66: BARC | C66: 262.55 | D66: GBX | E66: 103146733 | F66: 0,35
A67: #N/A | B67: B5A | D67: #N/A | F67: #N/A
A68: Bavarian Nordic A/S | B68: BAVA | C68: 145.5 | D68: DKK | E68: 410720 | F68: -13,9
A69: Baxter International Inc | B69: BTl | C69: 27.01 | D69: EUR | E69: 0 | F69: #N/A
A70: Bayerische Motoren Werke AG | B70: bmw | C70: 65.1 | D70: EUR | E70: 3049803 | F70: 11,62
A71: Bayerische Motoren Werke AG | B71: BMW | C71: 65.1 | D71: EUR | E71: 3049803 | F71: 11,62
A72: Bayerische Motoren Werke AG Preference Shares | B72: BMW3 | C72: 61.5 | D72: EUR | E72: 171407 | F72: 11,62
A73: BayWa AG Baywa Vink Ord Shs | B73: BYW6 | C73: 8.2 | D73: EUR | E73: 16575 | F73: -15,39
A74: BB Biotech 2nd Line Ord Shs | B74: BION | C74: 26 | D74: CHF | E74: 208244 | F74: 1,38
A75: Befesa SA | B75: BFSA | C75: 23.24 | D75: EUR | E75: 157334 | F75: 1,38
A76: Beiersdorf AG | B76: BEI | C76: 115.8 | D76: EUR | E76: 471926 | F76: 4,05
A77: Beijer Alma AB | B77: 6O4 | C77: 14.54 | D77: EUR | E77: 0 | F77: #N/A
A78: ACT Energy Technologies Ltd | B78: ACX | C78: 4.63 | D78: CAD | E78: 96142 | F78: 1,51
A79: Bijou Brigitte modische Accessoires AG | B79: BIJ | C79: 35.8 | D79: EUR | E79: 6917 | F79: 2,78
A80: BIO-TECHNE Corp | B80: TECH | C80: 49.26 | D80: USD | E80: 2663328 | F80: 0,98
A81: Biogen Inc | B81: BIIB | C81: 113.38 | D81: USD | E81: 2193612 | F81: 11,19
A82: Biomarin Pharmaceutical Inc | B82: BMRN | C82: 56.32 | D82: USD | E82: 2043681 | F82: 2,21
A83: BioNTech SE - ADR | B83: BNTX | C83: 93.12 | D83: USD | E83: 1164665 | F83: -3,03
A84: Biotest AG Preference Shares | B84: BIO3 | C84: 30 | D84: EUR | E84: 3830 | F84: 0,67
A85: Birkenstock Holding PLC | B85: BIRK | C85: 47.25 | D85: USD | E85: 2158256 | F85: 1,28
A86: BlackBerry Ltd | B86: BB | C86: 3.14 | D86: USD | E86: 17906603 | F86: -0,01
A87: BLOM Emerging Shariah Index (Net TR) | B87: BESI | C87: 1644.01 | D87: #N/A | E87: 0 | F87: #N/A
A88: Blue Cap AG | B88: B7E | C88: 17.2 | D88: EUR | E88: 1063 | F88: -2,35
A89: BNP Paribas SA | B89: BNP | C89: 67.23 | D89: EUR | E89: 7709559 | F89: 9,57
A90: Boeing Co | B90: BA | C90: 155.52 | D90: USD | E90: 10024940 | F90: -18,36
A91: Booking Holdings Inc | B91: BKNG | C91: 4494.64 | D91: USD | E91: 410437 | F91: 172,68
A92: Boreo Oyj | B92: BOREO | C92: 14.95 | D92: EUR | E92: 1654 | F92: 0,84
A93: Borussia Dortmund GmbH & Co KGaA | B93: BVB | C93: 2.9 | D93: EUR | E93: 127160 | F93: -0,17
A94: BP plc | B94: BPE5 | C94: 3.96 | D94: EUR | E94: 2987100 | F94: #N/A
A95: Bper Banca SpA | B95: BPE | C95: 6.22 | D95: EUR | E95: 24184852 | F95: 0,99
A96: Bpost SA | B96: BPOST | C96: 1.38 | D96: EUR | E96: 264969 | F96: -1,03
A97: BRANICKS Group AG | B97: BRNK | C97: 1.82 | D97: EUR | E97: 24546 | F97: -0,09
A98: BRITISH AMERICAN TOBACCO PLC ADS Common Stock | B98: BTAFF | C98: 41.75 | D98: USD | E98: 1575 | F98: #N/A
A99: Bureau Veritas SA | B99: BVI | C99: 25.8 | D99: EUR | E99: 1823836 | F99: 1,25
A100: Buzzi SpA | B100: BZU | C100: 43.44 | D100: EUR | E100: 775896 | F100: 5,14
A101: Cable One Inc | B101: CABO | C101: 260.06 | D101: USD | E101: 62011 | F101: 3,43
A102: CaixaBank SA | B102: CABK | C102: 6.48 | D102: EUR | E102: 27413100 | F102: 0,8
A103: Cancom SE | B103: COK | C103: 23.75 | D103: EUR | E103: 108264 | F103: 1,09
A104: Capgemini SE | B104: CAP | C104: 125.25 | D104: EUR | E104: 905952 | F104: 9,47
A105: Carbios SA | B105: ALCRB | C105: 5.15 | D105: EUR | E105: 54420 | F105: -1,9
A106: CBOE VIX Sep Futures 4pm EST Mark Index | B106: UZU | C106: 24.1 | D106: #N/A | E106: 0 | F106: #N/A
A107: CBRE Group Inc | B107: CBRE | C107: 116.65 | D107: USD | E107: 1892631 | F107: 3,14
A108: Cellnex Telecom SA | B108: CLNX | C108: 31.64 | D108: EUR | E108: 1669908 | F108: -0,05
A109: CEWE Stiftung & Co KGaA | B109: CWC | C109: 96.9 | D109: EUR | E109: 8234 | F109: 8,63
A110: ChemoMetec A/S | B110: CHEMM | C110: 451 | D110: DKK | E110: 86593 | F110: 1,17
A111: #N/A | B111: LSPN | D111: #N/A | F111: #N/A
A112: Chocoladefabriken Lindt & Spruengli AG Participation | B112: LISP | C112: 11540 | D112: CHF | E112: 4899 | F112: 2897,73
A113: Christian Dior SE | B113: CDI | C113: 481 | D113: EUR | E113: 5682 | F113: 28,87
A114: Logista Integral SA | B114: LOG | C114: 27.96 | D114: EUR | E114: 406138 | F114: 2,37
A115: CIE Automotive SA | B115: CIE | C115: 20.85 | D115: EUR | E115: 122091 | F115: 2,71
A116: Cisco Systems Inc | B116: CSCO | C116: 56.59 | D116: USD | E116: 31383512 | F116: 2,28
A117: Citigroup Inc | B117: C | C117: 61.59 | D117: USD | E117: 25788648 | F117: 5,95
A118: City of London Investment Trust plc | B118: CLN | C118: 5.2 | D118: EUR | E118: 4001 | F118: #N/A
A119: Clariane SE | B119: CLARI | C119: 3.84 | D119: EUR | E119: 1230866 | F119: #N/A
A120: Cliq Digital AG | B120: CLIQ | C120: 5.99 | D120: EUR | E120: 45980 | F120: -4,75
A121: Coca-Cola Co | B121: KO | C121: 70.76 | D121: USD | E121: 22198391 | F121: 2,46
A122: Coca-Cola Consolidated Inc | B122: COKE | C122: 1379.94 | D122: USD | E122: 57254 | F122: 621,93
A123: Coca-Cola Europacific Partners PLC | B123: CCEP | C123: 84.99 | D123: USD | E123: 3198791 | F123: 3,37
A124: Coca-Cola Femsa SAB de CV | B124: KOF | C124: 94.13 | D124: USD | E124: 272698 | F124: 5,59
A125: Cofinimmo SA | B125: COFB | C125: 58.8 | D125: EUR | E125: 101595 | F125: 1,7
A126: Coloplast A/S | B126: CBHD | C126: 89.94 | D126: EUR | E126: 0 | F126: #N/A
A127: Colruyt Group NV | B127: COLR | C127: 40.34 | D127: EUR | E127: 134554 | F127: 2,78
A128: Commerzbank AG | B128: CBK | C128: 21.68 | D128: EUR | E128: 10680390 | F128: 2,08
A129: Opmobility SE | B129: POM | C129: 23.11 | D129: CHF | E129: 0 | F129: #N/A
A130: Concentra Group Holdings Parent Inc | B130: CON | C130: 20.36 | D130: USD | E130: 949764 | F130: 2,92
A131: Covestro AG | B131: 1COV | C131: 58.3 | D131: EUR | E131: 46471 | F131: -1,41
A132: #N/A | B132: CE2 | D132: #N/A | F132: #N/A
A133: CTP NV | B133: CTPNV | C133: 14.9 | D133: EUR | E133: 228772 | F133: 2,37
A134: CTS Eventim AG & Co KGaA | B134: EVD | C134: 93.25 | D134: EUR | E134: 121301 | F134: 3,32
A135: D'Ieteren Group SA | B135: DIE | C135: 155.2 | D135: EUR | E135: 76866 | F135: 6,95
A136: DaimlerChrysler CEDEAR | B136: MBG | C136: 0 | D136: ARS | E136: 0 | F136: #N/A
A137: Danske Bank A/S | B137: DANSKE | C137: 200.3 | D137: DKK | E137: 2794575 | F137: 18,06
A138: DATA MODUL Produ und Ver von ele Sys AG | B138: DAM | C138: 22.4 | D138: EUR | E138: 2512 | F138: 1,58
A139: Datagroup SE | B139: D6H | C139: 38.3 | D139: EUR | E139: 10011 | F139: 2,93
A140: Davide Campari Milano NV | B140: CPR | C140: 5.49 | D140: EUR | E140: 10051569 | F140: 0,17
A141: #N/A | B141: D05 | D141: #N/A | F141: #N/A
A142: Delivery Hero SE | B142: DHER | C142: 23.04 | D142: EUR | E142: 882811 | F142: -8,15
A143: Delta Air Lines Inc | B143: DAL | C143: 39.36 | D143: USD | E143: 19994046 | F143: 5,64
A144: Delta Plus Group SA | B144: ALDLT | C144: 45.35 | D144: EUR | E144: 1188 | F144: #N/A
A145: Deutsche Bank AG | B145: DBK | C145: 19.23 | D145: EUR | E145: 16269651 | F145: 1,37
A146: Deutsche Beteiligungs AG | B146: DBAN | C146: 23.1 | D146: EUR | E146: 26062 | F146: 2,45
A147: Deutsche Boerse AG Ordinary Shares | B147: DB1 | C147: 261.3 | D147: EUR | E147: 711397 | F147: 10,58
A148: Deutsche EuroShop AG | B148: DEQ | C148: 17.62 | D148: EUR | E148: 19645 | F148: 1,62
A149: Deutsche Lufthansa AG | B149: LHA | C149: 5.96 | D149: EUR | E149: 12800390 | F149: 1,16
A150: Deutsche Pfandbriefbank AG | B150: PBB | C150: 5.04 | D150: EUR | E150: 262199 | F150: 0,48
A151: DHL CAD Hedged CDR | B151: DHL | C151: 34.26 | D151: EUR | E151: 4847296 | F151: 2,81
A152: Deutsche Rohstoff AG | B152: DR0 | C152: 31.1 | D152: EUR | E152: 10269 | F152: 12,66
A153: Deutsche Telekom AG | B153: DTEGF | C153: 34.64 | D153: USD | E153: 2365 | F153: #N/A
A154: Deutsche Wohnen SE | B154: DWNI | C154: 19.8 | D154: EUR | E154: 527910 | F154: -1,55
A155: DEUTZ AG | B155: DEZ | C155: 6.03 | D155: EUR | E155: 1902085 | F155: 0,32
A156: Devon Energy Corp | B156: DVN | C156: 27.75 | D156: USD | E156: 16684880 | F156: 4,56
A157: #N/A | B157: DFV | D157: #N/A | F157: #N/A
A158: DocMorris AG | B158: DOCM | C158: 19.32 | D158: CHF | E158: 332823 | F158: -8,25
A159: Dow Inc | B159: 2OY | C159: 24.2 | D159: EUR | E159: 3150 | F159: #N/A
A160: Dow Jones U.S. Large-Cap Total Stock Market Index | B160: DWL | C160: 12263.03 | D160: #N/A | E160: 0 | F160: #N/A
A161: Dow Jones U.S. Small-Cap Total Stock Market Index | B161: DWS | C161: 12672.25 | D161: #N/A | E161: 0 | F161: #N/A
A162: Dr Hoenle AG | B162: HNL | C162: 8.26 | D162: EUR | E162: 1682 | F162: -2,14
A163: Dr Ing hc F Porsche AG | B163: P911 | C163: 42.81 | D163: EUR | E163: 2031776 | F163: 3,94
A164: Draegerwerk AG & Co KGaA | B164: DRW8 | C164: 50 | D164: EUR | E164: 2121 | F164: 6,63
A165: DSM-Firmenich AG | B165: DSFIR | C165: 86 | D165: EUR | E165: 597166 | F165: 0,94
A166: Duerr AG | B166: DUE | C166: 18.56 | D166: EUR | E166: 190406 | F166: 0,87
A167: DuPont de Nemours Inc | B167: DD | C167: 57.66 | D167: USD | E167: 5561083 | F167: 1,77
A168: E.ON SE CEDEAR | B168: EOAN | C168: 380.5 | D168: ARS | E168: 0 | F168: #N/A
A169: eBay Inc | B169: EBAY | C169: 62.47 | D169: USD | E169: 6494272 | F169: 3,95
A170: Ebro Foods SA | B170: EBRO | C170: 16.76 | D170: EUR | E170: 40985 | F170: 1,35
A171: EDAG Engineering Group AG | B171: ED4 | C171: 6.8 | D171: EUR | E171: 1633 | F171: -0,58
A172: Edel SE & Co KgaA | B172: EDL | C172: 4.1 | D172: EUR | E172: 1131 | F172: 0,5
A173: Edp SA | B173: EDP | C173: 2.95 | D173: EUR | E173: 13121076 | F173: 0,21
A174: EDP Renovaveis SA | B174: EDPR | C174: 7.11 | D174: EUR | E174: 897081 | F174: -0,53
A175: #N/A | B175: EIN3 | D175: #N/A | F175: #N/A
A176: El En SpA | B176: ELN | C176: 7.87 | D176: EUR | E176: 204865 | F176: 0,77
A177: Elekta AB (publ) | B177: EJXB | C177: 4.5 | D177: EUR | E177: 106 | F177: #N/A
A178: Elia Group SA | B178: ELI | C178: 81 | D178: EUR | E178: 238023 | F178: 5,43
A179: Eligo SpA | B179: ELG | C179: 1.81 | D179: EUR | E179: 0 | F179: -0,34
A180: Direxion Daily LLY Bear 1X Shares | B180: ELIS | C180: 29.92 | D180: USD | E180: 0 | F180: #N/A
A181: ElringKlinger AG | B181: ZIL2 | C181: 4.87 | D181: EUR | E181: 43266 | F181: -2,18
A182: Enbw Energie Baden Wuerttemberg AG | B182: EBK | C182: 67.8 | D182: EUR | E182: 28 | F182: 4,59
A183: #N/A | B183: ECV | D183: #N/A | F183: #N/A
A184: Energiekontor AG | B184: EKT | C184: 41.2 | D184: EUR | E184: 30578 | F184: 1,62
A185: Engie SA | B185: ENGI | C185: 17.97 | D185: EUR | E185: 8879467 | F185: 1,65
A186: Eni SpA | B186: ENI | C186: 11.56 | D186: EUR | E186: 27144344 | F186: 0,81
A187: eQ Oyj | B187: EQV1V | C187: 10.05 | D187: EUR | E187: 5829 | F187: 0,47
A188: #N/A | B188: ALESK | D188: #N/A | F188: #N/A
A189: Evonik Industries AG | B189: EVK | C189: 17.89 | D189: EUR | E189: 1591779 | F189: 0,48
A190: Exor NV | B190: EXO | C190: 76.1 | D190: EUR | E190: 232530 | F190: 67
A191: Fabasoft AG | B191: FAA | C191: 16.6 | D191: EUR | E191: 10572 | F191: 0,87
A192: FACC AG | B192: FACC | C192: 6.75 | D192: EUR | E192: 72974 | F192: 0,14
A193: FAE Technology SpA SB | B193: FAE | C193: 2.21 | D193: EUR | E193: 32906 | F193: 0,29
A194: FedEx Corp | B194: FDX | C194: 206.4 | D194: USD | E194: 2801441 | F194: 15,93
A195: Ferguson Enterprises Inc | B195: FERG | C195: 161.75 | D195: USD | E195: 2230106 | F195: 8,13
A196: Ferrari NV | B196: RACE | C196: 423.81 | D196: USD | E196: 0 | F196: #N/A
A197: Ferrovial SE | B197: FER | C197: 44.32 | D197: USD | E197: 110755 | F197: #N/A
A198: Fidelity National Financial Inc | B198: FNF | C198: 60.17 | D198: USD | E198: 1760139 | F198: 4,65
A199: Fidelity National Information Servcs Inc | B199: FIS | C199: 69.51 | D199: USD | E199: 3422436 | F199: 1,42
A200: Floridienne SA | B200: FLOB | C200: 615 | D200: EUR | E200: 39 | F200: 1,57
... 327 more rows

Sheet Währung
A1: Column1 | B1: Column2 | C1: Column3 | D1: Column4
B2: 1 | C2: Währung | D2: Umrechnung
B3: 2 | C3: EUR | D3: 1
B4: 3 | C4: CHF | D4: 1,08308
B5: 4 | C5: GBP | D5: 1,15828
B6: 5 | C6: USD | D6: 0,893455439
B7: 6 | D7: #NV
B8: 7 | D8: #NV
B9: 8 | D9: #NV
B10: 9 | D10: #NV
B11: 10 | D11: #NV
